Workbook

Sheet Planilha Orcamentaria - Tipo 3
D3: Campo de Cálculo | K3: Planilha orçamentária - CER III - Tipo 3 (Ref.: Brasília, Agosto/2014, com desoneração) | S3: Itens variáveis
C4: 5 | D4: 2
G6: =MAX(D18:D1082) -> 2
C9: 2 | D9: 2 | F9: =SUM(D18:D1082) -> 519 | G9: =SUBTOTAL(9,D18:D1082) -> 519 | N9: Área total | O9: 1362.87 | P9: =P17/O9 -> 0
C10: 1900-01-05
N13: Distorcao somatorio | O13: =SUM(P19,P21,P35,P45,P123,P139,P149,P159,P173,P315,P329,P417,P447,P469,P487,P549,P579,P629,P647,P677,P693,P797,P809,P823,P861,P885,P901,P921,P927,P1017,P1037,P1061,P1067,P1075)-P17 -> 0
C14: =cont -> 
C15: C2 | D15: Cod | E15: Itens Filhos | F15: Cod. Pai | G15: Linha CPU | I15: Código SINAPI | J15: Item | K15: Descrição / Serviço | L15: Observação | M15: Un | N15: Qtd | O15: Unit. | P15: Total (R$) | Q15: %
K17: TOTAL | U17: =SUMPRODUCT(S19:S1082,T19:T1082)+U19 -> 0
C19: =LEN(J19) -> 2 | D19: =COUNTIF($J$18:$J$1082,J19) -> 1 | E19: =IF(E20=0,1,E20) -> 1 | F19: =IF(C19=2,"",LEFT(J19,C19-3)) ->  | J19: 01 | K19: BDI
C20: =C19 -> 2 | E20: =SUM(IF(LEFT($J19:$J$1082,C19)=J19,1))-1 -> 0
C21: =LEN(J21) -> 2 | D21: =COUNTIF($J$18:$J$1082,J21) -> 1 | E21: =IF(E22=0,1,E22) -> 6 | F21: =IF(C21=2,"",LEFT(J21,C21-3)) ->  | J21: 02 | K21: SERVIÇOS PRELIMINARES
C22: =C21 -> 2 | E22: =SUM(IF(LEFT($J21:$J$1082,C21)=J21,1))-1 -> 6
C23: =LEN(J23) -> 5 | D23: =COUNTIF($J$18:$J$1082,J23) -> 1 | E23: =IF(E24=0,1,E24) -> 5 | F23: =IF(C23=2,"",LEFT(J23,C23-3)) -> 02 | J23: 02.01 | K23: Barracão de obras
C24: =C23 -> 5 | E24: =SUM(IF(LEFT($J23:$J$1082,C23)=J23,1))-1 -> 5
C25: =LEN(J25) -> 8 | D25: =COUNTIF($J$18:$J$1082,J25) -> 1 | E25: =IF(E26=0,1,E26) -> 1 | F25: =IF(C25=2,"",LEFT(J25,C25-3)) -> 02.01 | I25: 73805/001 | J25: 02.01.01 | K25: Barracão de obras para alojamento ou escritório, piso em pinho de 3º, paredes em compensado esp. 10mm e cobertura em telha amianto esp. 6mm, incluindo instalações elétricas e esquadrias | M25: M2 | N25: 15
C26: =C25 -> 8 | E26: =SUM(IF(LEFT($J25:$J$1082,C25)=J25,1))-1 -> 0 | N26: 0
C27: =LEN(J27) -> 8 | D27: =COUNTIF($J$18:$J$1082,J27) -> 1 | E27: =IF(E28=0,1,E28) -> 1 | F27: =IF(C27=2,"",LEFT(J27,C27-3)) -> 02.01 | I27: 74210/001 | J27: 02.01.02 | K27: Barracão para depósito em tábuas de madeira, cobertura em fibrocimento esp. 4mm, incluindo piso em argamassa traço 1:6 (cimento e areia) | M27: M2 | N27: 12
C28: =C27 -> 8 | E28: =SUM(IF(LEFT($J27:$J$1082,C27)=J27,1))-1 -> 0 | N28: 0
C29: =LEN(J29) -> 8 | D29: =COUNTIF($J$18:$J$1082,J29) -> 1 | E29: =IF(E30=0,1,E30) -> 1 | F29: =IF(C29=2,"",LEFT(J29,C29-3)) -> 02.01 | I29: 74242/001 | J29: 02.01.03 | K29: Barracão de obra para banheiro em chapa de madeira compensada, cobertura em fibrocimetno esp. 4mm, incluindo instalações hidro-sanitarias e elétricas | M29: M2 | N29: 12
C30: =C29 -> 8 | E30: =SUM(IF(LEFT($J29:$J$1082,C29)=J29,1))-1 -> 0 | N30: 0
C31: =LEN(J31) -> 8 | D31: =COUNTIF($J$18:$J$1082,J31) -> 1 | E31: =IF(E32=0,1,E32) -> 1 | F31: =IF(C31=2,"",LEFT(J31,C31-3)) -> 02.01 | I31: 74209/001 | J31: 02.01.04 | K31: Placa de obra em capa de aço galvanizado | M31: M2 | N31: 6
C32: =C31 -> 8 | E32: =SUM(IF(LEFT($J31:$J$1082,C31)=J31,1))-1 -> 0 | N32: 0
C33: =LEN(J33) -> 8 | D33: =COUNTIF($J$18:$J$1082,J33) -> 1 | E33: =IF(E34=0,1,E34) -> 1 | F33: =IF(C33=2,"",LEFT(J33,C33-3)) -> 02.01 | I33: 74220/001 | J33: 02.01.05 | K33: Tapume de compensado (estimativa de 70m de fechamento) | M33: M2 | N33: =70*2.2 -> 154
C34: =C33 -> 8 | E34: =SUM(IF(LEFT($J33:$J$1082,C33)=J33,1))-1 -> 0 | N34: 0
C35: =LEN(J35) -> 2 | D35: =COUNTIF($J$18:$J$1082,J35) -> 1 | E35: =IF(E36=0,1,E36) -> 4 | F35: =IF(C35=2,"",LEFT(J35,C35-3)) ->  | J35: 03 | K35: EQUIPE TÉCNICA | N35: 0
C36: =C35 -> 2 | E36: =SUM(IF(LEFT($J35:$J$1082,C35)=J35,1))-1 -> 4 | N36: 0
C37: =LEN(J37) -> 5 | D37: =COUNTIF($J$18:$J$1082,J37) -> 1 | E37: =IF(E38=0,1,E38) -> 1 | F37: =IF(C37=2,"",LEFT(J37,C37-3)) -> 03 | I37: CPU0001 | J37: 03.01 | K37: Engenheiro ou arquiteto Pleno | M37: Mês | N37: 12
C38: =C37 -> 5 | E38: =SUM(IF(LEFT($J37:$J$1082,C37)=J37,1))-1 -> 0 | N38: 0
C39: =LEN(J39) -> 5 | D39: =COUNTIF($J$18:$J$1082,J39) -> 1 | E39: =IF(E40=0,1,E40) -> 1 | F39: =IF(C39=2,"",LEFT(J39,C39-3)) -> 03 | I39: CPU0002 | J39: 03.02 | K39: Feitor ou encarregado geral | M39: Mês | N39: 12
C40: =C39 -> 5 | E40: =SUM(IF(LEFT($J39:$J$1082,C39)=J39,1))-1 -> 0 | N40: 0
C41: =LEN(J41) -> 5 | D41: =COUNTIF($J$18:$J$1092,J41) -> 1 | E41: =IF(E42=0,1,E42) -> 1 | F41: =IF(C41=2,"",LEFT(J41,C41-3)) -> 03 | I41: CPU0016 | J41: 03.03 | K41: Almoxarife | M41: Mês | N41: 12
C42: =C41 -> 5 | E42: =SUM(IF(LEFT($J41:$J$1092,C41)=J41,1))-1 -> 0 | N42: 0
C43: =LEN(J43) -> 5 | D43: =COUNTIF($J$18:$J$1092,J43) -> 1 | E43: =IF(E44=0,1,E44) -> 1 | F43: =IF(C43=2,"",LEFT(J43,C43-3)) -> 03 | I43: CPU0017 | J43: 03.04 | K43: Vigia noturno | M43: Mês | N43: 12
C44: =C43 -> 5 | E44: =SUM(IF(LEFT($J43:$J$1092,C43)=J43,1))-1 -> 0 | N44: 0
C45: =LEN(J45) -> 2 | D45: =COUNTIF($J$18:$J$1082,J45) -> 1 | E45: =IF(E46=0,1,E46) -> 38 | F45: =IF(C45=2,"",LEFT(J45,C45-3)) ->  | J45: 04 | K45: INFRA ESTRUTURA | N45: 0
C46: =C45 -> 2 | E46: =SUM(IF(LEFT($J45:$J$1082,C45)=J45,1))-1 -> 38 | N46: 0
C47: =LEN(J47) -> 5 | D47: =COUNTIF($J$18:$J$1082,J47) -> 1 | E47: =IF(E48=0,1,E48) -> 5 | F47: =IF(C47=2,"",LEFT(J47,C47-3)) -> 04 | J47: 04.01 | K47: Fundação Profunda | N47: 0
C48: =C47 -> 5 | E48: =SUM(IF(LEFT($J47:$J$1082,C47)=J47,1))-1 -> 5 | N48: 0
C49: =LEN(J49) -> 8 | D49: =COUNTIF($J$18:$J$1082,J49) -> 1 | E49: =IF(E50=0,1,E50) -> 4 | F49: =IF(C49=2,"",LEFT(J49,C49-3)) -> 04.01 | J49: 04.01.01 | K49: Estacas Escavadas | N49: 0
C50: =C49 -> 8 | E50: =SUM(IF(LEFT($J49:$J$1082,C49)=J49,1))-1 -> 4 | N50: 0
C51: =LEN(J51) -> 11 | D51: =COUNTIF($J$18:$J$1082,J51) -> 1 | E51: =IF(E52=0,1,E52) -> 1 | F51: =IF(C51=2,"",LEFT(J51,C51-3)) -> 04.01.01 | I51: 73992/001 | J51: 04.01.01.01 | K51: LOCACAO CONVENCIONAL DE OBRA, ATRAVÉS DE GABARITO DE TABUAS CORRIDAS PONTALETADAS A CADA 1,50M, SEM REAPROVEITAMENTO | M51: M2 | N51: =O9 -> 1362.87
C52: =C51 -> 11 | E52: =SUM(IF(LEFT($J51:$J$1082,C51)=J51,1))-1 -> 0 | N52: 0
C53: =LEN(J53) -> 11 | D53: =COUNTIF($J$18:$J$1082,J53) -> 1 | E53: =IF(E54=0,1,E54) -> 1 | F53: =IF(C53=2,"",LEFT(J53,C53-3)) -> 04.01.01 | I53: 72872 | J53: 04.01.01.02 | K53: Taxa de mobilização do empreiteiro | M53: EVENTO | N53: 1
C54: =C53 -> 11 | E54: =SUM(IF(LEFT($J53:$J$1082,C53)=J53,1))-1 -> 0 | N54: 0
C55: =LEN(J55) -> 11 | D55: =COUNTIF($J$18:$J$1082,J55) -> 1 | E55: =IF(E56=0,1,E56) -> 1 | F55: =IF(C55=2,"",LEFT(J55,C55-3)) -> 04.01.01 | I55: 72819 | J55: 04.01.01.03 | K55: ESTACA A TRADO (BROCA) DIAMETRO 30CM EM CONCRETO ARMADO MOLDADA IN-LOCO, 20 MPA | M55: M | N55: 1643
C56: =C55 -> 11 | E56: =SUM(IF(LEFT($J55:$J$1082,C55)=J55,1))-1 -> 0 | N56: 0
C57: =LEN(J57) -> 11 | D57: =COUNTIF($J$18:$J$1082,J57) -> 1 | E57: =IF(E58=0,1,E58) -> 1 | F57: =IF(C57=2,"",LEFT(J57,C57-3)) -> 04.01.01 | I57: 72209 | J57: 04.01.01.04 | K57: CARGA MANUAL E REMOCAO E ENTULHO COM TRANSPORTE ATE 1KM EM CAMINHAO BASCULANTE 6M3 | M57: M3 | N57: 117
C58: =C57 -> 11 | E58: =SUM(IF(LEFT($J57:$J$1082,C57)=J57,1))-1 -> 0 | N58: 0
C59: =LEN(J59) -> 5 | D59: =COUNTIF($J$18:$J$1082,J59) -> 1 | E59: =IF(E60=0,1,E60) -> 20 | F59: =IF(C59=2,"",LEFT(J59,C59-3)) -> 04 | J59: 04.02 | K59: Fundações Superficiais | N59: 0
C60: =C59 -> 5 | E60: =SUM(IF(LEFT($J59:$J$1082,C59)=J59,1))-1 -> 20 | N60: 0
C61: =LEN(J61) -> 8 | D61: =COUNTIF($J$18:$J$1082,J61) -> 1 | E61: =IF(E62=0,1,E62) -> 9 | F61: =IF(C61=2,"",LEFT(J61,C61-3)) -> 04.02 | J61: 04.02.01 | K61: Blocos de coroamento e Arranque de pilares
C62: =C61 -> 8 | E62: =SUM(IF(LEFT($J61:$J$1082,C61)=J61,1))-1 -> 9
C63: =LEN(J63) -> 11 | D63: =COUNTIF($J$18:$J$1082,J63) -> 1 | E63: =IF(E64=0,1,E64) -> 1 | F63: =IF(C63=2,"",LEFT(J63,C63-3)) -> 04.02.01 | I63: 79517/001 | J63: 04.02.01.01 | K63: ESCAVACAO MANUAL EM SOLO-PROF. ATE 1,50 M | M63: M3 | N63: 204
C64: =C63 -> 11 | E64: =SUM(IF(LEFT($J63:$J$1082,C63)=J63,1))-1 -> 0
C65: =LEN(J65) -> 11 | D65: =COUNTIF($J$18:$J$1082,J65) -> 1 | E65: =IF(E66=0,1,E66) -> 1 | F65: =IF(C65=2,"",LEFT(J65,C65-3)) -> 04.02.01 | I65: 5622 | J65: 04.02.01.02 | K65: REGULARIZACAO E COMPACTACAO MANUAL DE TERRENO COM SOQUETE (FUNDO DE VALA) | M65: M2 | N65: 204
C66: =C65 -> 11 | E66: =SUM(IF(LEFT($J65:$J$1082,C65)=J65,1))-1 -> 0
C67: =LEN(J67) -> 11 | D67: =COUNTIF($J$18:$J$1082,J67) -> 1 | E67: =IF(E68=0,1,E68) -> 1 | F67: =IF(C67=2,"",LEFT(J67,C67-3)) -> 04.02.01 | I67: 74254/002 | J67: 04.02.01.03 | K67: ARMACAO ACO CA-50, DIAM. 6,3 (1/4) À 12,5MM(1/2) -FORNECIMENTO/ CORTE(PERDA DE 10%) / DOBRA / COLOCAÇÃO. (BLOCOS E ARRANQUES DE PILARES) | M67: KG | N67: 4157.73
C68: =C67 -> 11 | E68: =SUM(IF(LEFT($J67:$J$1082,C67)=J67,1))-1 -> 0
C69: =LEN(J69) -> 11 | D69: =COUNTIF($J$18:$J$1084,J69) -> 1 | E69: =IF(E70=0,1,E70) -> 1 | F69: =IF(C69=2,"",LEFT(J69,C69-3)) -> 04.02.01 | I69: 73942/002 | J69: 04.02.01.04 | K69: ARMACAO DE ACO CA-60 DIAM. 3,4 A 6,0MM.- FORNECIMENTO / CORTE (C/PERDADE 10%) / DOBRA / COLOCAÇÃO. (BLOCOS E ARRANQUES DE PILARES) | M69: KG | N69: 35.55
C70: =C69 -> 11 | E70: =SUM(IF(LEFT($J69:$J$1084,C69)=J69,1))-1 -> 0
C71: =LEN(J71) -> 11 | D71: =COUNTIF($J$18:$J$1082,J71) -> 1 | E71: =IF(E72=0,1,E72) -> 1 | F71: =IF(C71=2,"",LEFT(J71,C71-3)) -> 04.02.01 | I71: 74115/001 | J71: 04.02.01.05 | K71: EXECUÇÃO DE LASTRO EM CONCRETO (1:2,5:6), PREPARO MANUAL (ESP=5cm) | M71: M3 | N71: 4.9
C72: =C71 -> 11 | E72: =SUM(IF(LEFT($J71:$J$1082,C71)=J71,1))-1 -> 0
C73: =LEN(J73) -> 11 | D73: =COUNTIF($J$18:$J$1082,J73) -> 1 | E73: =IF(E74=0,1,E74) -> 1 | F73: =IF(C73=2,"",LEFT(J73,C73-3)) -> 04.02.01 | I73: 5970 | J73: 04.02.01.06 | K73: FORMA TABUA PARA CONCRETO EM FUNDACAO, C/ REAPROVEITAMENTO 2X. (BLOCOS DE COROAMENTO) | M73: M2 | N73: 269.28
C74: =C73 -> 11 | E74: =SUM(IF(LEFT($J73:$J$1082,C73)=J73,1))-1 -> 0
C75: =LEN(J75) -> 11 | D75: =COUNTIF($J$18:$J$1082,J75) -> 1 | E75: =IF(E76=0,1,E76) -> 1 | F75: =IF(C75=2,"",LEFT(J75,C75-3)) -> 04.02.01 | I75: 74138/003 | J75: 04.02.01.07 | K75: CONCRETO USINADO BOMBEADO FCK=25MPA, INCLUSIVE LANCAMENTO E ADENSAMENTO (BLOCOS DE COROAMENTO) | M75: M3 | N75: 58.75
C76: =C75 -> 11 | E76: =SUM(IF(LEFT($J75:$J$1082,C75)=J75,1))-1 -> 0
C77: =LEN(J77) -> 11 | D77: =COUNTIF($J$18:$J$1082,J77) -> 1 | E77: =IF(E78=0,1,E78) -> 1 | F77: =IF(C77=2,"",LEFT(J77,C77-3)) -> 04.02.01 | I77: 72209 | J77: 04.02.01.08 | K77: CARGA MANUAL E REMOCAO E ENTULHO COM TRANSPORTE ATE 1KM EM CAMINHAO BASCULANTE 6M3 | M77: M3 | N77: 79.31
C78: =C77 -> 11 | E78: =SUM(IF(LEFT($J77:$J$1082,C77)=J77,1))-1 -> 0
C79: =LEN(J79) -> 11 | D79: =COUNTIF($J$18:$J$1082,J79) -> 1 | E79: =IF(E80=0,1,E80) -> 1 | F79: =IF(C79=2,"",LEFT(J79,C79-3)) -> 04.02.01 | I79: 73964/004 | J79: 04.02.01.09 | K79: REATERRO DE VALAS / CAVAS, COMPACTADA A MAÇO, EM CAMADAS DE ATÉ 30 CM. | M79: M3 | N79: 145.25
C80: =C79 -> 11 | E80: =SUM(IF(LEFT($J79:$J$1082,C79)=J79,1))-1 -> 0
C81: =LEN(J81) -> 8 | D81: =COUNTIF($J$18:$J$1082,J81) -> 1 | E81: =IF(E82=0,1,E82) -> 9 | F81: =IF(C81=2,"",LEFT(J81,C81-3)) -> 04.02 | J81: 04.02.02 | K81: Vigas Baldrames
C82: =C81 -> 8 | E82: =SUM(IF(LEFT($J81:$J$1082,C81)=J81,1))-1 -> 9
C83: =LEN(J83) -> 11 | D83: =COUNTIF($J$18:$J$1082,J83) -> 1 | E83: =IF(E84=0,1,E84) -> 1 | F83: =IF(C83=2,"",LEFT(J83,C83-3)) -> 04.02.02 | I83: 79517/001 | J83: 04.02.02.01 | K83: ESCAVACAO MANUAL EM SOLO-PROF. ATE 1,50 M | M83: M3 | N83: 299.38
C84: =C83 -> 11 | E84: =SUM(IF(LEFT($J83:$J$1082,C83)=J83,1))-1 -> 0
C85: =LEN(J85) -> 11 | D85: =COUNTIF($J$18:$J$1082,J85) -> 1 | E85: =IF(E86=0,1,E86) -> 1 | F85: =IF(C85=2,"",LEFT(J85,C85-3)) -> 04.02.02 | I85: 5622 | J85: 04.02.02.02 | K85: REGULARIZACAO E COMPACTACAO MANUAL DE TERRENO COM SOQUETE (FUNDO DE VALA) | M85: M2 | N85: 374.22
C86: =C85 -> 11 | E86: =SUM(IF(LEFT($J85:$J$1082,C85)=J85,1))-1 -> 0
C87: =LEN(J87) -> 11 | D87: =COUNTIF($J$18:$J$1082,J87) -> 1 | E87: =IF(E88=0,1,E88) -> 1 | F87: =IF(C87=2,"",LEFT(J87,C87-3)) -> 04.02.02 | I87: 74254/002 | J87: 04.02.02.03 | K87: ARMACAO ACO CA-50, DIAM. 6,3 (1/4) À 12,5MM(1/2) -FORNECIMENTO/ CORTE(PERDA DE 10%) / DOBRA / COLOCAÇÃO. (VIGAS BALDRAMES) | M87: KG | N87: 3578.45
C88: =C87 -> 11 | E88: =SUM(IF(LEFT($J87:$J$1082,C87)=J87,1))-1 -> 0
C89: =LEN(J89) -> 11 | D89: =COUNTIF($J$18:$J$1084,J89) -> 1 | E89: =IF(E90=0,1,E90) -> 1 | F89: =IF(C89=2,"",LEFT(J89,C89-3)) -> 04.02.02 | I89: 73942/002 | J89: 04.02.02.04 | K89: ARMACAO DE ACO CA-60 DIAM. 3,4 A 6,0MM.- FORNECIMENTO / CORTE (C/PERDADE 10%) / DOBRA / COLOCAÇÃO. (VIGAS BALDRAMES) | M89: KG | N89: 603.55
C90: =C89 -> 11 | E90: =SUM(IF(LEFT($J89:$J$1084,C89)=J89,1))-1 -> 0
C91: =LEN(J91) -> 11 | D91: =COUNTIF($J$18:$J$1082,J91) -> 1 | E91: =IF(E92=0,1,E92) -> 1 | F91: =IF(C91=2,"",LEFT(J91,C91-3)) -> 04.02.02 | I91: 74115/001 | J91: 04.02.02.05 | K91: EXECUÇÃO DE LASTRO EM CONCRETO (1:2,5:6), PREPARO MANUAL (esp.=5cm) | M91: M3 | N91: 4.85
C92: =C91 -> 11 | E92: =SUM(IF(LEFT($J91:$J$1082,C91)=J91,1))-1 -> 0
C93: =LEN(J93) -> 11 | D93: =COUNTIF($J$18:$J$1082,J93) -> 1 | E93: =IF(E94=0,1,E94) -> 1 | F93: =IF(C93=2,"",LEFT(J93,C93-3)) -> 04.02.02 | I93: 5970 | J93: 04.02.02.06 | K93: FORMA TABUA PARA CONCRETO EM FUNDACAO, C/ REAPROVEITAMENTO 2X. (VIGAS BALDRAMES) | M93: M2 | N93: 554.4
C94: =C93 -> 11 | E94: =SUM(IF(LEFT($J93:$J$1082,C93)=J93,1))-1 -> 0
C95: =LEN(J95) -> 11 | D95: =COUNTIF($J$18:$J$1082,J95) -> 1 | E95: =IF(E96=0,1,E96) -> 1 | F95: =IF(C95=2,"",LEFT(J95,C95-3)) -> 04.02.02 | I95: 74138/003 | J95: 04.02.02.07 | K95: CONCRETO USINADO BOMBEADO FCK=25MPA, INCLUSIVE LANCAMENTO E ADENSAMENTO (VIGAS BALDRAMES) | M95: M3 | N95: 40.98
C96: =C95 -> 11 | E96: =SUM(IF(LEFT($J95:$J$1082,C95)=J95,1))-1 -> 0
C97: =LEN(J97) -> 11 | D97: =COUNTIF($J$18:$J$1082,J97) -> 1 | E97: =IF(E98=0,1,E98) -> 1 | F97: =IF(C97=2,"",LEFT(J97,C97-3)) -> 04.02.02 | I97: 72209 | J97: 04.02.02.08 | K97: CARGA MANUAL E REMOCAO E ENTULHO COM TRANSPORTE ATE 1KM EM CAMINHAO BASCULANTE 6M3 | M97: M3 | N97: 404.16
C98: =C97 -> 11 | E98: =SUM(IF(LEFT($J97:$J$1082,C97)=J97,1))-1 -> 0
C99: =LEN(J99) -> 11 | D99: =COUNTIF($J$18:$J$1082,J99) -> 1 | E99: =IF(E100=0,1,E100) -> 1 | F99: =IF(C99=2,"",LEFT(J99,C99-3)) -> 04.02.02 | I99: 73964/004 | J99: 04.02.02.09 | K99: REATERRO DE VALAS / CAVAS, COMPACTADA A MAÇO, EM CAMADAS DE ATÉ 30 CM. | M99: M3 | N99: 258.4
C100: =C99 -> 11 | E100: =SUM(IF(LEFT($J99:$J$1082,C99)=J99,1))-1 -> 0
C101: =LEN(J101) -> 5 | D101: =COUNTIF($J$18:$J$1082,J101) -> 1 | E101: =IF(E102=0,1,E102) -> 10 | F101: =IF(C101=2,"",LEFT(J101,C101-3)) -> 04 | J101: 04.03 | K101: Reservatório inferior
C102: =C101 -> 5 | E102: =SUM(IF(LEFT($J101:$J$1082,C101)=J101,1))-1 -> 10
C103: =LEN(J103) -> 8 | D103: =COUNTIF($J$18:$J$1082,J103) -> 1 | E103: =IF(E104=0,1,E104) -> 1 | F103: =IF(C103=2,"",LEFT(J103,C103-3)) -> 04.03 | I103: 79517/002 | J103: 04.03.01 | K103: ESCAVACAO MANUAL EM SOLO, PROF. MAIOR QUE 1,5M ATE 4,00 M | M103: m3 | N103: 25
C104: =C103 -> 8 | E104: =SUM(IF(LEFT($J103:$J$1082,C103)=J103,1))-1 -> 0
C105: =LEN(J105) -> 8 | D105: =COUNTIF($J$18:$J$1082,J105) -> 1 | E105: =IF(E106=0,1,E106) -> 1 | F105: =IF(C105=2,"",LEFT(J105,C105-3)) -> 04.03 | I105: 5622 | J105: 04.03.02 | K105: REGULARIZACAO E COMPACTACAO MANUAL DE TERRENO COM SOQUETE | M105: m2 | N105: 25
C106: =C105 -> 8 | E106: =SUM(IF(LEFT($J105:$J$1082,C105)=J105,1))-1 -> 0
C107: =LEN(J107) -> 8 | D107: =COUNTIF($J$18:$J$1082,J107) -> 1 | E107: =IF(E108=0,1,E108) -> 1 | F107: =IF(C107=2,"",LEFT(J107,C107-3)) -> 04.03 | I107: 74115/001 | J107: 04.03.03 | K107: EXECUÇÃO DE LASTRO EM CONCRETO (1:2,5:6), PREPARO MANUAL ESP. 5CM | M107: m3 | N107: 1.25
C108: =C107 -> 8 | E108: =SUM(IF(LEFT($J107:$J$1082,C107)=J107,1))-1 -> 0
C109: =LEN(J109) -> 8 | D109: =COUNTIF($J$18:$J$1082,J109) -> 1 | E109: =IF(E110=0,1,E110) -> 1 | F109: =IF(C109=2,"",LEFT(J109,C109-3)) -> 04.03 | I109: 84217 | J109: 04.03.04 | K109: FORMA PARA ESTRUTURAS DE CONCRETO (PILAR, VIGA E LAJE) EM CHAPA DE MADEIRA COMPENSADA PLASTIFICADA, DE 1,10 X 2,20, ESPESSURA = 12 MM, 02 UTILIZACOES. (FABRICACAO, MONTAGEM E DESMONTAGEM - EXCLUSIVE ESCORAMENTO) | M109: m2 | N109: 75
C110: =C109 -> 8 | E110: =SUM(IF(LEFT($J109:$J$1082,C109)=J109,1))-1 -> 0
C111: =LEN(J111) -> 8 | D111: =COUNTIF($J$18:$J$1082,J111) -> 1 | E111: =IF(E112=0,1,E112) -> 1 | F111: =IF(C111=2,"",LEFT(J111,C111-3)) -> 04.03 | I111: 74254/002 | J111: 04.03.05 | K111: ARMACAO ACO CA-50, DIAM. 6,3 (1/4) À 12,5MM(1/2) -FORNECIMENTO/ CORTE(PERDA DE 10%) / DOBRA / COLOCAÇÃO. | M111: kg | N111: 1650
C112: =C111 -> 8 | E112: =SUM(IF(LEFT($J111:$J$1082,C111)=J111,1))-1 -> 0
C113: =LEN(J113) -> 8 | D113: =COUNTIF($J$18:$J$1082,J113) -> 1 | E113: =IF(E114=0,1,E114) -> 1 | F113: =IF(C113=2,"",LEFT(J113,C113-3)) -> 04.03 | I113: 74138/003 | J113: 04.03.06 | K113: CONCRETO USINADO BOMBEADO FCK=25MPA, INCLUSIVE LANCAMENTO E ADENSAMENTO | M113: m3 | N113: 15
C114: =C113 -> 8 | E114: =SUM(IF(LEFT($J113:$J$1082,C113)=J113,1))-1 -> 0
C115: =LEN(J115) -> 8 | D115: =COUNTIF($J$18:$J$1082,J115) -> 1 | E115: =IF(E116=0,1,E116) -> 1 | F115: =IF(C115=2,"",LEFT(J115,C115-3)) -> 04.03 | I115: 5968 | J115: 04.03.07 | K115: IMPERMEABILIZACAO DE SUPERFICIE COM ARGAMASSA DE CIMENTO E AREIA (MEDIA), TRACO 1:3, COM ADITIVO IMPERMEABILIZANTE, E=2CM. | M115: M2 | N115: 75
C116: =C115 -> 8 | E116: =SUM(IF(LEFT($J115:$J$1082,C115)=J115,1))-1 -> 0
C117: =LEN(J117) -> 8 | D117: =COUNTIF($J$18:$J$1092,J117) -> 1 | E117: =IF(E118=0,1,E118) -> 1 | F117: =IF(C117=2,"",LEFT(J117,C117-3)) -> 04.03 | I117: Cotação | J117: 04.03.08 | K117: Impermeabilização com argamassa polimérica flexível | M117: M2 | N117: 75
C118: =C117 -> 8 | E118: =SUM(IF(LEFT($J117:$J$1092,C117)=J117,1))-1 -> 0
C119: =LEN(J119) -> 8 | D119: =COUNTIF($J$18:$J$1082,J119) -> 1 | E119: =IF(E120=0,1,E120) -> 1 | F119: =IF(C119=2,"",LEFT(J119,C119-3)) -> 04.03 | I119: 73964/006 | J119: 04.03.09 | K119: REATERRO DE VALA COM COMPACTAÇÃO MANUAL | M119: m3 | N119: 6.5
C120: =C119 -> 8 | E120: =SUM(IF(LEFT($J119:$J$1082,C119)=J119,1))-1 -> 0
C121: =LEN(J121) -> 8 | D121: =COUNTIF($J$18:$J$1082,J121) -> 1 | E121: =IF(E122=0,1,E122) -> 1 | F121: =IF(C121=2,"",LEFT(J121,C121-3)) -> 04.03 | I121: 72209 | J121: 04.03.10 | K121: CARGA MANUAL E REMOCAO E ENTULHO COM TRANSPORTE ATE 1KM EM CAMINHAO BASCULANTE 6M3 | M121: m3 | N121: 18.5
C122: =C121 -> 8 | E122: =SUM(IF(LEFT($J121:$J$1082,C121)=J121,1))-1 -> 0
C123: =LEN(J123) -> 2 | D123: =COUNTIF($J$18:$J$1082,J123) -> 1 | E123: =IF(E124=0,1,E124) -> 7 | F123: =IF(C123=2,"",LEFT(J123,C123-3)) ->  | J123: 05 | K123: SUPER ESTRUTURA | N123: 0
C124: =C123 -> 2 | E124: =SUM(IF(LEFT($J123:$J$1082,C123)=J123,1))-1 -> 7 | N124: 0
C125: =LEN(J125) -> 5 | D125: =COUNTIF($J$18:$J$1082,J125) -> 1 | E125: =IF(E126=0,1,E126) -> 6 | F125: =IF(C125=2,"",LEFT(J125,C125-3)) -> 05 | J125: 05.01 | K125: Pilares, vigas e lajes | N125: 0
C126: =C125 -> 5 | E126: =SUM(IF(LEFT($J125:$J$1082,C125)=J125,1))-1 -> 6 | N126: 0
C127: =LEN(J127) -> 8 | D127: =COUNTIF($J$18:$J$1082,J127) -> 1 | E127: =IF(E128=0,1,E128) -> 1 | F127: =IF(C127=2,"",LEFT(J127,C127-3)) -> 05.01 | I127: 84222 | J127: 05.01.01 | K127: FORMA PARA ESTRUTURAS DE CONCRETO (PILAR, VIGA E LAJE) EM CHAPA DE MADEIRA COMPENSADA PLASTIFICADA, DE 1,10 X 2,20, ESPESSURA = 18 MM, 03 UTILIZACOES. (FABRICACAO, MONTAGEM E DESMONTAGEM - EXCLUSIVE ESCORAMENTO) | M127: M2 | N127: 2283.69
C128: =C127 -> 8 | E128: =SUM(IF(LEFT($J127:$J$1082,C127)=J127,1))-1 -> 0
C129: =LEN(J129) -> 8 | D129: =COUNTIF($J$18:$J$1082,J129) -> 1 | E129: =IF(E130=0,1,E130) -> 1 | F129: =IF(C129=2,"",LEFT(J129,C129-3)) -> 05.01 | I129: 83515 | J129: 05.01.02 | K129: ESCORAMENTO FORMAS DE H=3,30 A 3,50 M, COM MADEIRA 3A QUALIDADE, NAO APARELHADA, APROVEITAMENTO TABUAS 3X E PRUMOS 4X | M129: M3 | N129: 4391.31
C130: =C129 -> 8 | E130: =SUM(IF(LEFT($J129:$J$1082,C129)=J129,1))-1 -> 0
C131: =LEN(J131) -> 8 | D131: =COUNTIF($J$18:$J$1082,J131) -> 1 | E131: =IF(E132=0,1,E132) -> 1 | F131: =IF(C131=2,"",LEFT(J131,C131-3)) -> 05.01 | I131: 74254/002 | J131: 05.01.03 | K131: ARMACAO ACO CA-50, DIAM. 6,3 (1/4) À 12,5MM(1/2) -FORNECIMENTO/ CORTE(PERDA DE 10%) / DOBRA / COLOCAÇÃO.Obs.: os quantitativos de projeto incluem perdas de 10%. Considerando que a composição SINAPI já inclui perda de 10%, foram retirados 10% do quantitativo para que não haja sobreposição de perdas. | M131: KG | N131: 12291.25
C132: =C131 -> 8 | E132: =SUM(IF(LEFT($J131:$J$1082,C131)=J131,1))-1 -> 0
C133: =LEN(J133) -> 8 | D133: =COUNTIF($J$18:$J$1082,J133) -> 1 | E133: =IF(E134=0,1,E134) -> 1 | F133: =IF(C133=2,"",LEFT(J133,C133-3)) -> 05.01 | I133: 73942/002 | J133: 05.01.04 | K133: ARMACAO DE ACO CA-60 DIAM. 3,4 A 6,0MM.- FORNECIMENTO / CORTE (C/PERDADE 10%) / DOBRA / COLOCAÇÃO.Obs.: os quantitativos de projeto incluem perdas de 10%. Considerando que a composição SINAPI já inclui perda de 10%, foram retirados 10% do quantitativo para que não haja sobreposição de perdas. | M133: KG | N133: 1381.91
C134: =C133 -> 8 | E134: =SUM(IF(LEFT($J133:$J$1082,C133)=J133,1))-1 -> 0
C135: =LEN(J135) -> 8 | D135: =COUNTIF($J$18:$J$1082,J135) -> 1 | E135: =IF(E136=0,1,E136) -> 1 | F135: =IF(C135=2,"",LEFT(J135,C135-3)) -> 05.01 | I135: 74138/003 | J135: 05.01.05 | K135: CONCRETO USINADO BOMBEADO FCK=25MPA, INCLUSIVE LANCAMENTO E ADENSAMENTO | M135: M3 | N135: 201.02
C136: =C135 -> 8 | E136: =SUM(IF(LEFT($J135:$J$1082,C135)=J135,1))-1 -> 0
C137: =LEN(J137) -> 8 | D137: =COUNTIF($J$18:$J$1082,J137) -> 1 | E137: =IF(E138=0,1,E138) -> 1 | F137: =IF(C137=2,"",LEFT(J137,C137-3)) -> 05.01 | I137: 73970/002 | J137: 05.01.06 | K137: ESTRUTURA METALICA EM ACO ESTRUTURAL PERFIL I 6 X 3 3/8 | M137: KG | N137: 29175.86
C138: =C137 -> 8 | E138: =SUM(IF(LEFT($J137:$J$1082,C137)=J137,1))-1 -> 0 | N138: 0
C139: =LEN(J139) -> 2 | D139: =COUNTIF($J$18:$J$1082,J139) -> 1 | E139: =IF(E140=0,1,E140) -> 4 | F139: =IF(C139=2,"",LEFT(J139,C139-3)) ->  | J139: 06 | K139: ALVENARIA | N139: 0
C140: =C139 -> 2 | E140: =SUM(IF(LEFT($J139:$J$1082,C139)=J139,1))-1 -> 4 | N140: 0
C141: =LEN(J141) -> 5 | D141: =COUNTIF($J$18:$J$1082,J141) -> 1 | E141: =IF(E142=0,1,E142) -> 1 | F141: =IF(C141=2,"",LEFT(J141,C141-3)) -> 06 | J141: 06.01 | K141: Alvenaria de vedação com blocos cerâmicos furados 10x20x20cm | N141: 0
C142: =C141 -> 5 | E142: =SUM(IF(LEFT($J141:$J$1082,C141)=J141,1))-1 -> 1 | N142: 0
C143: =LEN(J143) -> 8 | D143: =COUNTIF($J$18:$J$1082,J143) -> 1 | E143: =IF(E144=0,1,E144) -> 1 | F143: =IF(C143=2,"",LEFT(J143,C143-3)) -> 06.01 | I143: 87519 | J143: 06.01.01 | K143: ALVENARIA DE VEDAÇÃO DE BLOCOS CERÂMICOS FURADOS NA HORIZONTAL DE 9X19X19CM (ESPESSURA 9CM) DE PAREDES COM ÁREA LÍQUIDA MAIOR OU IGUAL A 6M² COM VÃOS E ARGAMASSA DE ASSENTAMENTO COM PREPARO EM BETONEIRA. AF_06/2014_P | M143: M2 | N143: 2537.77
C144: =C143 -> 8 | E144: =SUM(IF(LEFT($J143:$J$1082,C143)=J143,1))-1 -> 0 | N144: 0
C145: =LEN(J145) -> 5 | D145: =COUNTIF($J$18:$J$1082,J145) -> 1 | E145: =IF(E146=0,1,E146) -> 1 | F145: =IF(C145=2,"",LEFT(J145,C145-3)) -> 06 | J145: 06.02 | K145: Verga e Contra-verga | N145: 0
C146: =C145 -> 5 | E146: =SUM(IF(LEFT($J145:$J$1082,C145)=J145,1))-1 -> 1 | N146: 0
C147: =LEN(J147) -> 8 | D147: =COUNTIF($J$18:$J$1082,J147) -> 1 | E147: =IF(E148=0,1,E148) -> 1 | F147: =IF(C147=2,"",LEFT(J147,C147-3)) -> 06.02 | I147: 83901 | J147: 06.02.01 | K147: VERGAS 10X10 CM, PREMOLDADAS C/ CONCRETO FCK=15 MPA (PREPARO MECANICO), ACO CA-50 COM FORMAS TABUA DE PINHO 3A | M147: M | N147: 342.38
C148: =C147 -> 8 | E148: =SUM(IF(LEFT($J147:$J$1082,C147)=J147,1))-1 -> 0 | N148: 0
C149: =LEN(J149) -> 2 | D149: =COUNTIF($J$18:$J$1082,J149) -> 1 | E149: =IF(E150=0,1,E150) -> 4 | F149: =IF(C149=2,"",LEFT(J149,C149-3)) ->  | J149: 07 | K149: COBERTURA | N149: 0
C150: =C149 -> 2 | E150: =SUM(IF(LEFT($J149:$J$1082,C149)=J149,1))-1 -> 4 | N150: 0
C151: =LEN(J151) -> 5 | D151: =COUNTIF($J$18:$J$1082,J151) -> 1 | E151: =IF(E152=0,1,E152) -> 1 | F151: =IF(C151=2,"",LEFT(J151,C151-3)) -> 07 | I151: CPU0006 | J151: 07.01 | K151: Cobertura com telha trapezoidal de alumínio esp. 0,7mm, apoiada sobre engradamento metálico (engradamento cotado no item 04.01.06) | M151: M2 | N151: 1168.64
C152: =C151 -> 5 | E152: =SUM(IF(LEFT($J151:$J$1082,C151)=J151,1))-1 -> 0 | N152: 0
C153: =LEN(J153) -> 5 | D153: =COUNTIF($J$18:$J$1082,J153) -> 1 | E153: =IF(E154=0,1,E154) -> 1 | F153: =IF(C153=2,"",LEFT(J153,C153-3)) -> 07 | I153: CPU0007 | J153: 07.02 | K153: Cobertura com telha trapezoidal de alumínio esp. 0,7mm termoacústica (espessura Isolamento EPS 50mm), apoiada sobre engradamento metálico (engradamento cotado no item 04.01.06) | M153: M2 | N153: 512.67
C154: =C153 -> 5 | E154: =SUM(IF(LEFT($J153:$J$1082,C153)=J153,1))-1 -> 0 | N154: 0
A155: y | C155: =LEN(J155) -> 5 | D155: =COUNTIF($J$18:$J$1082,J155) -> 1 | E155: =IF(E156=0,1,E156) -> 1 | F155: =IF(C155=2,"",LEFT(J155,C155-3)) -> 07 | I155: Cotação | J155: 07.03 | K155: Rufos de alumínio desenvolvimento até 60cm | M155: M | N155: 389.27
C156: =C155 -> 5 | E156: =SUM(IF(LEFT($J155:$J$1082,C155)=J155,1))-1 -> 0 | N156: 0
A157: y | C157: =LEN(J157) -> 5 | D157: =COUNTIF($J$18:$J$1082,J157) -> 1 | E157: =IF(E158=0,1,E158) -> 1 | F157: =IF(C157=2,"",LEFT(J157,C157-3)) -> 07 | I157: Cotação | J157: 07.04 | K157: Calhas de alumínio desenvolvimento até 100cm | M157: M | N157: 116
C158: =C157 -> 5 | E158: =SUM(IF(LEFT($J157:$J$1082,C157)=J157,1))-1 -> 0 | N158: 0
C159: =LEN(J159) -> 2 | D159: =COUNTIF($J$18:$J$1082,J159) -> 1 | E159: =IF(E160=0,1,E160) -> 6 | F159: =IF(C159=2,"",LEFT(J159,C159-3)) ->  | J159: 08 | K159: IMPERMEABILIZAÇÕES | N159: 0
C160: =C159 -> 2 | E160: =SUM(IF(LEFT($J159:$J$1082,C159)=J159,1))-1 -> 6 | N160: 0
C161: =LEN(J161) -> 5 | D161: =COUNTIF($J$18:$J$1082,J161) -> 1 | E161: =IF(E162=0,1,E162) -> 5 | F161: =IF(C161=2,"",LEFT(J161,C161-3)) -> 08 | J161: 08.01 | K161: Impermeabilização | N161: 0
C162: =C161 -> 5 | E162: =SUM(IF(LEFT($J161:$J$1082,C161)=J161,1))-1 -> 5 | N162: 0
C163: =LEN(J163) -> 8 | D163: =COUNTIF($J$18:$J$1082,J163) -> 1 | E163: =IF(E164=0,1,E164) -> 1 | F163: =IF(C163=2,"",LEFT(J163,C163-3)) -> 08.01 | I163: 87071 | J163: 08.01.01 | K163: (ARGAMASSA DE REGULARIZAÇÃO) CONTRAPISO EM ARGAMASSA TRAÇO 1:4 (CIMENTO E AREIA), PREPARO MECÂNICO COM BETONEIRA 400 L, APLICADO EM ÁREAS SECAS MENORES QUE 10M2 SOBRE LAJE, ADERIDO, ESPESSURA 2CM, ACABAMENTO REFORÇADO. AF_06/2014 | M163: M2 | N163: =N165 -> 23.44
C164: =C163 -> 8 | E164: =SUM(IF(LEFT($J163:$J$1082,C163)=J163,1))-1 -> 0 | N164: 0
C165: =LEN(J165) -> 8 | D165: =COUNTIF($J$18:$J$1082,J165) -> 1 | E165: =IF(E166=0,1,E166) -> 1 | F165: =IF(C165=2,"",LEFT(J165,C165-3)) -> 08.01 | I165: 83744 | J165: 08.01.02 | K165: PROTECAO MECANICA DE SUPERFICIE COM ARGAMASSA DE CIMENTO E AREIA, TRACO 1:7 CM, E=3 CM | M165: M2 | N165: 23.44
C166: =C165 -> 8 | E166: =SUM(IF(LEFT($J165:$J$1082,C165)=J165,1))-1 -> 0 | N166: 0
C167: =LEN(J167) -> 8 | D167: =COUNTIF($J$18:$J$1082,J167) -> 1 | E167: =IF(E168=0,1,E168) -> 1 | F167: =IF(C167=2,"",LEFT(J167,C167-3)) -> 08.01 | I167: 73753/001 | J167: 08.01.03 | K167: IMPERMEABILIZACAO DE SUPERFICIE COM MANTA ASFALTICA PROTEGIDA COM FILME DE ALUMINIO GOFRADO (DE ESPESSURA 0,8MM), INCLUSA APLICACAO DE EMULSAO ASFALTICA, E=3MM. | M167: M2 | N167: 23.44
C168: =C167 -> 8 | E168: =SUM(IF(LEFT($J167:$J$1082,C167)=J167,1))-1 -> 0 | N168: 0
C169: =LEN(J169) -> 8 | D169: =COUNTIF($J$18:$J$1084,J169) -> 1 | E169: =IF(E170=0,1,E170) -> 1 | F169: =IF(C169=2,"",LEFT(J169,C169-3)) -> 08.01 | I169: 5968 | J169: 08.01.04 | K169: Impermeabilização da alvenaria de embasamento - IMPERMEABILIZACAO DE SUPERFICIE COM ARGAMASSA DE CIMENTO E AREIA (MEDIA), TRACO 1:3, COM ADITIVO IMPERMEABILIZANTE, E=2CM. | M169: M2 | N169: =693*0.94 -> 651.42
C170: =C169 -> 8 | E170: =SUM(IF(LEFT($J169:$J$1084,C169)=J169,1))-1 -> 0 | N170: 0
C171: =LEN(J171) -> 8 | D171: =COUNTIF($J$18:$J$1092,J171) -> 1 | E171: =IF(E172=0,1,E172) -> 1 | F171: =IF(C171=2,"",LEFT(J171,C171-3)) -> 08.01 | I171: 74106/001 | J171: 08.01.05 | K171: Impermeabilização de vigas baldrame e alvenaria de embasamento - IMPERMEABILIZACAO DE ESTRUTURAS ENTERRADAS, COM TINTA ASFALTICA TRÊS DEMAOS | M171: M2 | N171: =N169 -> 651.42
C172: =C171 -> 8 | E172: =SUM(IF(LEFT($J171:$J$1092,C171)=J171,1))-1 -> 0 | N172: 0
C173: =LEN(J173) -> 2 | D173: =COUNTIF($J$18:$J$1082,J173) -> 1 | E173: =IF(E174=0,1,E174) -> 70 | F173: =IF(C173=2,"",LEFT(J173,C173-3)) ->  | J173: 09 | K173: INSTALAÇÕES ELÉTRICAS PREDIAIS | N173: 0
C174: =C173 -> 2 | E174: =SUM(IF(LEFT($J173:$J$1082,C173)=J173,1))-1 -> 70 | N174: 0
C175: =LEN(J175) -> 5 | D175: =COUNTIF($J$18:$J$1082,J175) -> 1 | E175: =IF(E176=0,1,E176) -> 1 | F175: =IF(C175=2,"",LEFT(J175,C175-3)) -> 09 | I175: 73613 | J175: 09.01 | K175: ELETRODUTO DE PVC RIGIDO ROSCAVEL DN 20MM (3/4") INCL CONEXOES, FORNECIMENTO E INSTALACAO - TETO | M175: m | N175: 945.7
C176: =C175 -> 5 | E176: =SUM(IF(LEFT($J175:$J$1082,C175)=J175,1))-1 -> 0
C177: =LEN(J177) -> 5 | D177: =COUNTIF($J$18:$J$1082,J177) -> 1 | E177: =IF(E178=0,1,E178) -> 1 | F177: =IF(C177=2,"",LEFT(J177,C177-3)) -> 09 | I177: 73613 | J177: 09.02 | K177: ELETRODUTO DE PVC RIGIDO ROSCAVEL DN 20MM (3/4") INCL CONEXOES, FORNECIMENTO E INSTALACAO - PAREDE | M177: m | N177: 530.7
C178: =C177 -> 5 | E178: =SUM(IF(LEFT($J177:$J$1082,C177)=J177,1))-1 -> 0
C179: =LEN(J179) -> 5 | D179: =COUNTIF($J$18:$J$1082,J179) -> 1 | E179: =IF(E180=0,1,E180) -> 1 | F179: =IF(C179=2,"",LEFT(J179,C179-3)) -> 09 | I179: 73613 | J179: 09.03 | K179: ELETRODUTO DE PVC RIGIDO ROSCAVEL DN 20MM (3/4") INCL CONEXOES, FORNECIMENTO E INSTALACAO - PISO | M179: m | N179: 744.3
C180: =C179 -> 5 | E180: =SUM(IF(LEFT($J179:$J$1082,C179)=J179,1))-1 -> 0
C181: =LEN(J181) -> 5 | D181: =COUNTIF($J$18:$J$1082,J181) -> 1 | E181: =IF(E182=0,1,E182) -> 1 | F181: =IF(C181=2,"",LEFT(J181,C181-3)) -> 09 | I181: 74252/001 | J181: 09.04 | K181: ELETRODUTO DE PVC RIGIDO ROSCAVEL DN 25MM (1") INCL CONEXOES, FORNECIMENTO E INSTALACAO - TETO | M181: m | N181: 29
C182: =C181 -> 5 | E182: =SUM(IF(LEFT($J181:$J$1082,C181)=J181,1))-1 -> 0
C183: =LEN(J183) -> 5 | D183: =COUNTIF($J$18:$J$1082,J183) -> 1 | E183: =IF(E184=0,1,E184) -> 1 | F183: =IF(C183=2,"",LEFT(J183,C183-3)) -> 09 | I183: 74252/001 | J183: 09.05 | K183: ELETRODUTO DE PVC RIGIDO ROSCAVEL DN 25MM (1") INCL CONEXOES, FORNECIMENTO E INSTALACAO - PAREDE | M183: m | N183: 7.2
C184: =C183 -> 5 | E184: =SUM(IF(LEFT($J183:$J$1082,C183)=J183,1))-1 -> 0
C185: =LEN(J185) -> 5 | D185: =COUNTIF($J$18:$J$1082,J185) -> 1 | E185: =IF(E186=0,1,E186) -> 1 | F185: =IF(C185=2,"",LEFT(J185,C185-3)) -> 09 | I185: 83407 | J185: 09.06 | K185: ELETRODUTO DE PVC RIGIDO ROSCAVEL DN 32MM (1 1/4") INCL CONEXOES, FORNECIMENTO E INSTALACAO - PAREDE | M185: m | N185: 45
C186: =C185 -> 5 | E186: =SUM(IF(LEFT($J185:$J$1082,C185)=J185,1))-1 -> 0
C187: =LEN(J187) -> 5 | D187: =COUNTIF($J$18:$J$1082,J187) -> 1 | E187: =IF(E188=0,1,E188) -> 1 | F187: =IF(C187=2,"",LEFT(J187,C187-3)) -> 09 | I187: 83440 | J187: 09.07 | K187: CAIXA DE PASSAGEM 4X2" EM FERRO GALVANIZADO | M187: UNID | N187: 428
C188: =C187 -> 5 | E188: =SUM(IF(LEFT($J187:$J$1082,C187)=J187,1))-1 -> 0
C189: =LEN(J189) -> 5 | D189: =COUNTIF($J$18:$J$1082,J189) -> 1 | E189: =IF(E190=0,1,E190) -> 1 | F189: =IF(C189=2,"",LEFT(J189,C189-3)) -> 09 | I189: 83438 | J189: 09.08 | K189: CAIXA METALICA OCTOGONAL 4X4" FUNDO MOVEL | M189: UNID | N189: 255
C190: =C189 -> 5 | E190: =SUM(IF(LEFT($J189:$J$1082,C189)=J189,1))-1 -> 0
A191: y | C191: =LEN(J191) -> 5 | D191: =COUNTIF($J$18:$J$1082,J191) -> 1 | E191: =IF(E192=0,1,E192) -> 1 | F191: =IF(C191=2,"",LEFT(J191,C191-3)) -> 09 | I191: Cotação | J191: 09.09 | K191: Caixa p/ tomada de piso 4"x4" c/ anel de regulagem | M191: UNID | N191: 4
C192: =C191 -> 5 | E192: =SUM(IF(LEFT($J191:$J$1082,C191)=J191,1))-1 -> 0
A193: y | C193: =LEN(J193) -> 5 | D193: =COUNTIF($J$18:$J$1082,J193) -> 1 | E193: =IF(E194=0,1,E194) -> 1 | F193: =IF(C193=2,"",LEFT(J193,C193-3)) -> 09 | I193: Cotação | J193: 09.10 | K193: Caixa de passagem em alumínio c/ tampa anti-derrapante 20x20 cm | M193: UNID | N193: 19
C194: =C193 -> 5 | E194: =SUM(IF(LEFT($J193:$J$1082,C193)=J193,1))-1 -> 0
C195: =LEN(J195) -> 5 | D195: =COUNTIF($J$18:$J$1082,J195) -> 1 | E195: =IF(E196=0,1,E196) -> 1 | F195: =IF(C195=2,"",LEFT(J195,C195-3)) -> 09 | I195: 72336 | J195: 09.11 | K195: Espelho cego redondo | M195: UNID | N195: 7
C196: =C195 -> 5 | E196: =SUM(IF(LEFT($J195:$J$1082,C195)=J195,1))-1 -> 0
C197: =LEN(J197) -> 5 | D197: =COUNTIF($J$18:$J$1082,J197) -> 1 | E197: =IF(E198=0,1,E198) -> 1 | F197: =IF(C197=2,"",LEFT(J197,C197-3)) -> 09 | I197: 73860/008 | J197: 09.12 | K197: CABO DE COBRE ISOLADO PVC 450/750V 2.5 mm2 (F) REISTENTE A CHAMA - FORNECIMENTO E INSTALACAO | M197: m | N197: 6147.3
C198: =C197 -> 5 | E198: =SUM(IF(LEFT($J197:$J$1082,C197)=J197,1))-1 -> 0
C199: =LEN(J199) -> 5 | D199: =COUNTIF($J$18:$J$1082,J199) -> 1 | E199: =IF(E200=0,1,E200) -> 1 | F199: =IF(C199=2,"",LEFT(J199,C199-3)) -> 09 | I199: 73860/008 | J199: 09.13 | K199: CABO DE COBRE ISOLADO PVC 450/750V 2.5 mm2 (N) REISTENTE A CHAMA - FORNECIMENTO E INSTALACAO | M199: m | N199: 6264.2
C200: =C199 -> 5 | E200: =SUM(IF(LEFT($J199:$J$1082,C199)=J199,1))-1 -> 0
C201: =LEN(J201) -> 5 | D201: =COUNTIF($J$18:$J$1082,J201) -> 1 | E201: =IF(E202=0,1,E202) -> 1 | F201: =IF(C201=2,"",LEFT(J201,C201-3)) -> 09 | I201: 73860/008 | J201: 09.14 | K201: CABO DE COBRE ISOLADO PVC 450/750V 2.5 mm2 (R) REISTENTE A CHAMA - FORNECIMENTO E INSTALACAO | M201: m | N201: 740.6
C202: =C201 -> 5 | E202: =SUM(IF(LEFT($J201:$J$1082,C201)=J201,1))-1 -> 0
C203: =LEN(J203) -> 5 | D203: =COUNTIF($J$18:$J$1082,J203) -> 1 | E203: =IF(E204=0,1,E204) -> 1 | F203: =IF(C203=2,"",LEFT(J203,C203-3)) -> 09 | I203: 73860/008 | J203: 09.15 | K203: CABO DE COBRE ISOLADO PVC 450/750V 2.5 mm2 (T) REISTENTE A CHAMA - FORNECIMENTO E INSTALACAO | M203: m | N203: 4949.8
C204: =C203 -> 5 | E204: =SUM(IF(LEFT($J203:$J$1082,C203)=J203,1))-1 -> 0
C205: =LEN(J205) -> 5 | D205: =COUNTIF($J$18:$J$1082,J205) -> 1 | E205: =IF(E206=0,1,E206) -> 1 | F205: =IF(C205=2,"",LEFT(J205,C205-3)) -> 09 | I205: 73860/010 | J205: 09.16 | K205: CABO DE COBRE ISOLADO PVC 450/750V 6 mm2 (F) REISTENTE A CHAMA - FORNECIMENTO E INSTALACAO | M205: m | N205: 62.3
C206: =C205 -> 5 | E206: =SUM(IF(LEFT($J205:$J$1082,C205)=J205,1))-1 -> 0
C207: =LEN(J207) -> 5 | D207: =COUNTIF($J$18:$J$1082,J207) -> 1 | E207: =IF(E208=0,1,E208) -> 1 | F207: =IF(C207=2,"",LEFT(J207,C207-3)) -> 09 | I207: 73860/010 | J207: 09.17 | K207: CABO DE COBRE ISOLADO PVC 450/750V 6 mm2 (N) REISTENTE A CHAMA - FORNECIMENTO E INSTALACAO | M207: m | N207: 109.2
C208: =C207 -> 5 | E208: =SUM(IF(LEFT($J207:$J$1082,C207)=J207,1))-1 -> 0
C209: =LEN(J209) -> 5 | D209: =COUNTIF($J$18:$J$1082,J209) -> 1 | E209: =IF(E210=0,1,E210) -> 1 | F209: =IF(C209=2,"",LEFT(J209,C209-3)) -> 09 | I209: 73860/010 | J209: 09.18 | K209: CABO DE COBRE ISOLADO PVC 450/750V 6 mm2 (R) REISTENTE A CHAMA - FORNECIMENTO E INSTALACAO | M209: m | N209: 101.3
... 863 more rows

Sheet CPUs - Geral
B2: Composições de preço
B4: Cód. CPU | C4: Cód. Insumo | D4: Fonte Insumo | E4: Descrição | F4: Unidade | G4: Índice | H4: Custo unitário | I4: Custo Total
B6: CPU0001 | E6: Engenheiro ou arquiteto Pleno | F6: Mês
C7: 2707 | D7: Sinapi | E7: ENGENHEIRO DE OBRA PLENO | F7: HH | G7: 220
E8: Encargos sociais Mensalistas (48,37%) | F8: VB | G8: 1
B10: CPU0002 | E10: Feitor ou encarregado geral | F10: Mês
C11: 4083 | D11: Sinapi | E11: ENCARREGADO GERAL | F11: HH | G11: 220
E12: Encargos sociais Mensalistas (48,37%) | F12: VB | G12: 1
B14: CPU0016 | E14: Almoxarife | F14: Mês
C15: 2707 | D15: Sinapi | E15: Almoxarife | F15: HH | G15: 220
E16: Encargos sociais Mensalistas (48,37%) | F16: VB | G16: 1
B18: CPU0017 | E18: Vigia de obra, escala de trabalho 12x36 | F18: Mês
C19: 10508 | D19: Sinapi | E19: Vigia noturno | F19: HH | G19: 220
B21: CPU0006 | E21: Cobertura com telha trapezoidal de alumínio esp. 0,7mm - CPU BASE: 84040 "COBERTURA COM TELHA DE AÇO ZINCADO, TRAPEZOIDAL, ESPESSURA DE 0,50MM, INCLUNDO ACESSÓRIOS" | F21: M2
C22: 2700 | E22: MONTADOR | F22: H | G22: 0.071
C23: 6111 | E23: SERVENTE | F23: H | G23: 0.0514
C24: 1607 | E24: CONJUNTO ARRUELAS DE VEDACAO 5/16" P/ TELHA FIBROCIMENTO (UMA ARRUELA METALICA E UMA ARRULA PVC - CONICAS) | F24: CJ | G24: 2.05
D25: Cotação | E25: Telha trrapezoidal de alumínio esp. 0.7mm | F25: M2 | G25: 1.19
C26: 11029 | E26: HASTE RETA P/ GANCHO FG C/ ROSCA - 1/4" X 30CM - P/ FIXACAO TELHA METALICA - INCL PORCA E ARRUELAS DE VEDACAO | F26: CJ | G26: 2.05
B28: CPU0007 | E28: Cobertura com telha trapezoidal de alumínio termoacústica esp. 0,7mm+50mm+0,7mm - CPU BASE: 84040 "COBERTURA COM TELHA DE AÇO ZINCADO, TRAPEZOIDAL, ESPESSURA DE 0,50MM, INCLUNDO ACESSÓRIOS" | F28: M2
C29: 2700 | E29: MONTADOR | F29: H | G29: 0.071
C30: 6111 | E30: SERVENTE | F30: H | G30: 0.0514
C31: 1607 | E31: CONJUNTO ARRUELAS DE VEDACAO 5/16" P/ TELHA FIBROCIMENTO (UMA ARRUELA METALICA E UMA ARRULA PVC - CONICAS) | F31: CJ | G31: 2.05
D32: Cotação | E32: Telha trrapezoidal de alumínio esp. 0.7mm | F32: M2 | G32: =1.03*2 -> 2.06
D33: Cotação | E33: Injeção de poliuretano em telhas termo-acústicas | F33: M2 | G33: =1.03 -> 1.03
C34: 11029 | E34: HASTE RETA P/ GANCHO FG C/ ROSCA - 1/4" X 30CM - P/ FIXACAO TELHA METALICA - INCL PORCA E ARRUELAS DE VEDACAO | F34: CJ | G34: 2.05
B36: CPU0008 | E36: D2 - Divisória em vidro temperado 12mm - CPU BASE: 74229/1 "DIVISORIA EM MARMORE BRANCO POLIDO, ESPESSURA 3 CM, ASSENTADO COM ARGAMASSA TRACO 1:4 (CIMENTO E AREIA), ARREMATE COM CIMENTO BRANCO, EXCLUSIVE FERRAGENS" | F36: M2
C37: 72120 | D37: Cotação | E37: VIDRO TEMPERADO INCOLOR, ESPESSURA 12MM, FORNECIMENTO E INSTALACAO CLUSIVE MASSA PARA VEDACAO | F37: M2 | G37: 1
C38: 84885 | D38: Sinapi | E38: JOGO DE FERRAGENS CROMADAS PARA PORTA DE VIDRO TEMPERADO, UMA FOLHA COMPOSTO DE DOBRADICAS SUPERIOR E INFERIOR, TRINCO, FECHADURA, CONTRA FECHADURA COM CAPUCHINHO SEM MOLA E PUXADOR | F38: UNID | G38: =1/(0.8*2.1) -> 0.5952380952
C39: 7321 | D39: SInapi | E39: Mastique elástico a base de silicone | F39: Bisnaga | G39: 0.25
C40: 10489 | D40: Sinapi | E40: Vidraceiro | F40: HH | G40: 4.8
C41: 6111 | D41: Sinapi | E41: Servente | F41: HH | G41: 2.3
B43: CPU0009 | E43: PC2 - Porta chapeada madeira com visor, pintura esmalte sintético acetinado 80X210 cm CPU BASE: 73934/1 "PORTA EM CHAPA DE FIBRA DE EUCALIPTO LISA PARA PINTURA, 80X210X3,5CM, INCLUSO ADUELA 2A, ALIZAR 2A E DOBRADICAS" | F43: UNID
C44: 1214 | D44: Sinapi | E44: Carpinteiro | F44: HH | G44: 2.05
C45: 4750 | D45: Sinapi | E45: Pedreiro | F45: HH | G45: 1.4
C46: 6117 | D46: Sinapi | E46: Ajudante de carpinteiro | F46: HH | G46: 3.45
C47: 88627 | D47: Sinapi | E47: ARGAMASSA TRAÇO 1:0,5:4,5 (CIMENTO, CAL E AREIA MÉDIA) PARA ASSENTAMENTO DE ALVENARIA, PREPARO MANUAL. AF_08/2014 | F47: M3 | G47: 0.01
C48: 184 | D48: Sinapi | E48: ADUELA/BATENTE DUPLO/CAIXAO/GRADE CAIXA 13 X 3CM P/ PORTA 0,60 A 1,20 X 2,10M MADEIRA CEDRINHO/PINHO/CANELA OU SIMILAR | F48: JG | G48: 1
C49: 2427 | D49: Sinapi | E49: DOBRADICA LATAO CROMADO 3 X 3" SEM ANEIS | F49: UNID | G49: 3
C50: 4419 | D50: Sinapi | E50: PECA DE MADEIRA DE LEI NATIVA/REGIONAL 10 X 10 X 3 CM P/ FIXACAO DE ESQUADRIAS OU RODAPE | F50: UNID | G50: 6
C51: 11366 | D51: Sinapi | E51: PORTA EUCATEX EUCADUR PRONTA PARA PINTURA 80 X 210 X 3,5CM | F51: UNID | G51: 1
C52: 20006 | D52: Sinapi | E52: ALIZAR / GUARNICAO 5 X 2CM MADEIRA CEDRO/IMBUIA/JEQUITIBA OU SIMILAR | F52: m | G52: 10
C53: 20247 | D53: Sinapi | E53: PREGO DE ACO 15 X 15 C/ CABECA | F53: KG | G53: 0.6
C54: 85010 | D54: Sinapi | E54: Caixilho de alumínio para confecção de visor | F54: M2 | G54: =0.6*0.8 -> 0.48
C55: 72117 | D55: Sinapi | E55: Vidro liso incolor esp. 4mm | F55: M2 | G55: =0.6*0.8 -> 0.48
B57: CPU0010 | E57: PH2 - Porta chapeada madeira com visor, 2 folhas (70+70), pintura esm. sintético acetinado 140X210 cm CPU BASE: 73910/3 "PORTA DE MADEIRA COMPENSADA LISA PARA PINTURA, 70X210X3,5CM, INCLUSO ADUELA 2A, ALIZAR 2A E DOBRADICAS" | F57: UNID
C58: 1214 | D58: Sinapi | E58: Carpinteiro | F58: HH | G58: =2.015*1.5 -> 3.0225
C59: 4750 | D59: Sinapi | E59: Pedreiro | F59: HH | G59: =1.372*1.5 -> 2.058
C60: 6117 | D60: Sinapi | E60: Ajudante de carpinteiro | F60: HH | G60: =3.387*1.5 -> 5.0805
C61: 88627 | D61: Sinapi | E61: ARGAMASSA TRAÇO 1:0,5:4,5 (CIMENTO, CAL E AREIA MÉDIA) PARA ASSENTAMENTO DE ALVENARIA, PREPARO MANUAL. AF_08/2014 | F61: M3 | G61: =0.0098*1.5 -> 0.0147
C62: 184 | D62: Sinapi | E62: ADUELA/BATENTE DUPLO/CAIXAO/GRADE CAIXA 13 X 3CM P/ PORTA 0,60 A 1,20 X 2,10M MADEIRA CEDRINHO/PINHO/CANELA OU SIMILAR | F62: JG | G62: 1.5
C63: 2427 | D63: Sinapi | E63: DOBRADICA LATAO CROMADO 3 X 3" SEM ANEIS | F63: UNID | G63: 6
C64: 4419 | D64: Sinapi | E64: PECA DE MADEIRA DE LEI NATIVA/REGIONAL 10 X 10 X 3 CM P/ FIXACAO DE ESQUADRIAS OU RODAPE | F64: UNID | G64: 9
C65: 10554 | D65: Sinapi | E65: PORTA DE MADEIRA SEMI-OCA, FOLHA LISA PARA PINTURA *70 X 210 X 3,5* CM | F65: UNID | G65: 2
C66: 20006 | D66: Sinapi | E66: ALIZAR / GUARNICAO 5 X 2CM MADEIRA CEDRO/IMBUIA/JEQUITIBA OU SIMILAR | F66: m | G66: =2.1+2.1+1.4 -> 5.6
C67: 20247 | D67: Sinapi | E67: PREGO DE ACO 15 X 15 C/ CABECA | F67: KG | G67: =0.588*1.5 -> 0.882
C68: 85010 | D68: Sinapi | E68: Caixilho de alumínio para confecção de visor | F68: M2 | G68: =0.5*0.8*2 -> 0.8
D69: Cotação | E69: Vidro incolor laminado esp. 6mm | F69: M2 | G69: =G68 -> 0.8
B71: CPU0011 | E71: Placa em PVC adesivada | F71: M2
C72: 84121 | D72: Sinapi | E72: Placa identificação acrílico 25x8cm borda polida - fornecimento e colocação | F72: UNID | G72: =1/0.25/0.08 -> 50
B74: CPU0012 | E74: Sinalilzação em braile para corrimãos | F74: UNID
C75: 84121 | D75: Sinapi | E75: Placa identificação acrílico 25x8cm borda polida - fornecimento e colocação | F75: UNID | G75: 1
B77: CPU0014 | E77: PE1 - Porta de correr, em vidro temperado 10mm, com puxador em aço inoxidável 100X210 cm | F77: UNID
C78: 73838/001 | D78: Sinapi | E78: PC5 - PORTA DE VIDRO TEMPERADO, 0,9X2,10M, ESPESSURA 10MM, INCLUSIVE ACESSORIOS | F78: UNID | G78: =(1*2.1)/(0.9*2.1) -> 1.111111111
B80: CPU0015 | E80: Armários revestidos com laminado melamínico | F80: M2
C81: SEE-ARM-015 | D81: Setop | E81: AC-ARMÁRIO (71 x 52 x 350 cm) EM MADEIRA MACIÇA, COM PORTAS E PUXADORES, SOB BANCADA DO LABORATORIO COM PRATELEIRA, REVESTIDO EM LAMINADO MELAMÍNICO | F81: M2 | G81: 1
B83: 74106/001 | E83: IMPERMEABILIZACAO DE ESTRUTURAS ENTERRADAS, COM TINTA ASFALTICA TRÊS DEMAOS | F83: M2
C84: 6111 | D84: Sinapi | E84: Servente | F84: HH | G84: =0.4*1.5 -> 0.6
C85: 7319 | D85: Sinapi | E85: TINTA ASFALTICA PARA CONCRETO E ARGAMASSA - LATA 18L | F85: L | G85: =0.4*1.5 -> 0.6
B87: CPU0018 | E87: T4 - Tampo em aço inoxidável com bordas elevadas para retenção de líquidos, com testeira (h=5cm) e roda bancada (h=10cm) CPU BASE: 86889 "BANCADA DE GRANITO CINZA POLIDO PARA PIA DE COZINHA 1,50 X 0,60 M -FORNECIMENTO E INSTALAÇÃO. AF_12/2013_P" | F87: M2
C88: 86957 | D88: Sinapi | E88: Mão francesa em barra de ferro chato | F88: UNID | G88: 2
C89: 88274 | D89: Sinapi | E89: Marmorista | F89: HH | G89: 1.49
C90: 88316 | D90: Sinapi | E90: Servente | F90: HH | G90: 0.98
C91: 1380 | D91: Sinapi | E91: Cimento branco | F91: KG | G91: 0.0351
C92: 4823 | D92: Sinapi | E92: Massa plástica adesiva | F92: KG | G92: 0.5228
C93: 7568 | D93: Sinapi | E93: Bucha de nylon | F93: UNID | G93: 6
C94: 11689 | D94: Sinapi | E94: Banca de aço inox L=70cm | F94: M | G94: =1.05/0.7 -> 1.5
B96: CPU0019 | E96: Divisórias em granito cinza andorinha polido em duas faces, esp. 3cm. CPU BASE: 79627 "DIVISORIA EM GRANITO BRANCO POLIDO, ESP = 3CM, ASSENTADO COM ARGAMASSA TRACO 1:4, ARREMATE EM CIMENTO BRANCO, EXCLUSIVE FERRAGENS" | F96: M2
C97: 88274 | D97: Sinapi | E97: Marmorista | F97: HH | G97: 4.8
C98: 88316 | D98: Sinapi | E98: Servente | F98: HH | G98: 2.3
C99: 1380 | D99: Sinapi | E99: Cimento branco | F99: KG | G99: 0.7
C100: 88631 | D100: Sinapi | E100: ARGAMASSA TRAÇO 1:4 (CIMENTO E AREIA MÉDIA), PREPARO MANUAL. AF_08/2014 | F100: m3 | G100: 0.0033
D101: Cotação | E101: Divisória de granito cinza andorinha polida em duas faces, esp. 3cm | F101: M2 | G101: 1
B103: 84089 | E103: PEITORIL EM GRANITO CINZA ANDORINHA, LARGURA DE 25CM, ASSENTADO COM ARGAMASSA TRACO 1:3 (CIMENTO E AREIA MEDIA), PREPARO MANUAL DA ARGAMASSA - CPU BASE: 84089 "PEITORIL EM MARMORE BRANCO, LARGURA DE 25CM, ASSENTADO COM ARGAMASSA TRACO 1:3 (CIMENTO E AREIA MEDIA), PREPARO MANUAL DA ARGAMASSA" | F103: M
C104: 88274 | D104: Sinapi | E104: Marmorista | F104: HH | G104: 0.6
C105: 88316 | D105: Sinapi | E105: Servente | F105: HH | G105: 0.6
C106: 86629 | D106: Sinapi | E106: ARGAMASSA TRAÇO 1:3 (CIMENTO E AREIA MÉDIA), PREPARO MANUAL. AF_08/2014 | F106: m3 | G106: 0.0055
D107: Cotação | E107: Peitoril de granito cinza andorinha largura 25cm | F107: ML | G107: 1.05
B109: 84161 | E109: SOLEIRA DE GRANITO CINZA ANDORINHA, LARGURA 15CM, ESPESSURA 3CM, ASSENTADA SOBRE ARGAMASSA TRACO 1:4 (CIMENTO E AREIA)- CPU BASE: 79627 "DIVISORIA EM GRANITO BRANCO POLIDO, ESP = 3CM, ASSENTADO COM ARGAMASSA TRACO 1:4, ARREMATE EM CIMENTO BRANCO, EXCLUSIVE FERRAGENS" | F109: M
C110: 88274 | D110: Sinapi | E110: Marmorista | F110: HH | G110: 0.4
C111: 88316 | D111: Sinapi | E111: Servente | F111: HH | G111: 0.2
C112: 86629 | D112: Sinapi | E112: ARGAMASSA TRAÇO 1:3 (CIMENTO E AREIA MÉDIA), PREPARO MANUAL. AF_08/2014 | F112: m3 | G112: 0.003
D113: Cotação | E113: Soleira de granito cinza andorinha largura 15cm | F113: M2 | G113: 1.05
B115: 74111/001 | E115: TENTO DE GRANITO CINZA ANDORINHA, LARGURA 5CM, ESPESSURA 3CM, ASSENTADA COM ARGAMASSA COLANTE - CPU BASE: 79627 "DIVISORIA EM GRANITO BRANCO POLIDO, ESP = 3CM, ASSENTADO COM ARGAMASSA TRACO 1:4, ARREMATE EM CIMENTO BRANCO, EXCLUSIVE FERRAGENS" | F115: M
C116: 88274 | D116: Sinapi | E116: Marmorista | F116: HH | G116: 0.15
C117: 88316 | D117: Sinapi | E117: Servente | F117: HH | G117: 0.1
C118: 1381 | D118: Sinapi | E118: ARGAMASSA COLANTE AC I PARA CERAMICAS | F118: Kg | G118: 0.135
D119: Cotação | E119: Tento de granito cinza andorinha largura 5cm | F119: M2 | G119: 1.05
B121: CPU0020 | E121: REVESTIMENTO CERÂMICO PARA PAREDES EXTERNAS EM PASTILHAS DE PORCELANA 5 X 5 CM (PLACAS DE 30 X 30 CM), ALINHADAS A PRUMO, APLICADO EM PANOS COM VÃOS. AF_10/2014. CPU FONTE: 88786 | F121: M2
C122: 88256 | D122: Sinapi | E122: AZULEJISTA OU LADRILHISTA COM ENCARGOS COMPLEMENTARES | F122: HH | G122: 1.29
C123: 88316 | D123: Sinapi | E123: SERVENTE COM ENCARGOS COMPLEMENTARES | F123: HH | G123: 0.65
D124: Cotação | E124: PASTILHA CERAMICA/PORCELANA, REVEST INT/EXT E PISCINA, CORES BRANCA OU FRIAS, *5 X 5* CM | F124: M2 | G124: 1.16
C125: 37659 | D125: Cotação | E125: ARGAMASSA OU CIMENTO COLANTE EM PO PARA FIXACAO INTERNA/EXTERNA DE PECAS CERAMICAS, PEDRAS E PORCELANATOS (ACIII) *COLETADO CAIXA* | F125: KG | G125: 9.84
B127: CPU0021 | E127: REVESTIMENTO CERÂMICO PARA PISO COM PLACAS TIPO PORCELANATO DE DIMENSÕES 60X60 CM APLICADA EM AMBIENTES DE ÁREA ENTRE 5 M² E 10M². AF_06/2014 CPU FONTE: 87259 | F127: M2
C128: 88256 | D128: Sinapi | E128: AZULEJISTA OU LADRILHISTA COM ENCARGOS COMPLEMENTARES | F128: HH | G128: 0.61
C129: 88316 | D129: Sinapi | E129: SERVENTE COM ENCARGOS COMPLEMENTARES | F129: HH | G129: 0.25
D130: Cotação | E130: PORCELANATO DE DIMENSÕES 60X60 CM | F130: M2 | G130: 1.07
C131: 34357 | D131: Cotação | E131: REJUNTE COLORIDO | F131: KG | G131: 0.24
C132: 37659 | D132: Cotação | E132: ARGAMASSA OU CIMENTO COLANTE EM PO PARA FIXACAO INTERNA/EXTERNA DE PECAS CERAMICAS, PEDRAS E PORCELANATOS (ACIII) *COLETADO CAIXA* | F132: KG | G132: 8.62
B134: CPU0022 | E134: Piso porcelanato técnico de textura de sinalização tátil alerta/ direcional colorido 24,5 x 24,5 cm Cor 1 CPU FONTE: 87259 | F134: M2
C135: 88256 | D135: Sinapi | E135: AZULEJISTA OU LADRILHISTA COM ENCARGOS COMPLEMENTARES | F135: HH | G135: 0.61
C136: 88316 | D136: Sinapi | E136: SERVENTE COM ENCARGOS COMPLEMENTARES | F136: HH | G136: 0.25
D137: Cotação | E137: Piso porcelanato técnico de textura de sinalização tátil alerta/ direcional colorido 24,5 x 24,5 cm Cor VERMELHO | F137: M2 | G137: 1.07
C138: 34357 | D138: Cotação | E138: REJUNTE COLORIDO | F138: KG | G138: 0.24
C139: 37659 | D139: Cotação | E139: ARGAMASSA OU CIMENTO COLANTE EM PO PARA FIXACAO INTERNA/EXTERNA DE PECAS CERAMICAS, PEDRAS E PORCELANATOS (ACIII) *COLETADO CAIXA* | F139: KG | G139: 8.62
B141: CPU0023 | E141: Piso porcelanato técnico de textura de sinalização tátil alerta/ direcional colorido 24,5 x 24,5 cm Cor 2 CPU FONTE: 87259 | F141: M2
C142: 88256 | D142: Sinapi | E142: AZULEJISTA OU LADRILHISTA COM ENCARGOS COMPLEMENTARES | F142: HH | G142: 0.61
C143: 88316 | D143: Sinapi | E143: SERVENTE COM ENCARGOS COMPLEMENTARES | F143: HH | G143: 0.25
D144: Cotação | E144: Piso porcelanato técnico de textura de sinalização tátil alerta/ direcional colorido 24,5 x 24,5 cm Cor AZUL | F144: M2 | G144: 1.07
C145: 34357 | D145: Cotação | E145: REJUNTE COLORIDO | F145: KG | G145: 0.24
C146: 37659 | D146: Cotação | E146: ARGAMASSA OU CIMENTO COLANTE EM PO PARA FIXACAO INTERNA/EXTERNA DE PECAS CERAMICAS, PEDRAS E PORCELANATOS (ACIII) *COLETADO CAIXA* | F146: KG | G146: 8.62
B148: CPU0024 | E148: RODAPE EM PORCELANATO ALTURA 8CM ASSENTADO SOBRE ARGAMASSA DE CIMENTO COLANTE REJUNTADO COM CIMENTO BRANCO CPU FONTE: 88648 | F148: M2
C149: 88256 | D149: Sinapi | E149: AZULEJISTA OU LADRILHISTA COM ENCARGOS COMPLEMENTARES | F149: HH | G149: 0.07
C150: 88316 | D150: Sinapi | E150: SERVENTE COM ENCARGOS COMPLEMENTARES | F150: HH | G150: 0.031
D151: Cotação | E151: PORCELANATO DE DIMENSÕES 60X60 CM | F151: M2 | G151: 0.12
C152: 34357 | D152: Cotação | E152: REJUNTE COLORIDO | F152: KG | G152: 0.085
C153: 37659 | D153: Cotação | E153: ARGAMASSA OU CIMENTO COLANTE EM PO PARA FIXACAO INTERNA/EXTERNA DE PECAS CERAMICAS, PEDRAS E PORCELANATOS (ACIII) *COLETADO CAIXA* | F153: KG | G153: 0.603
B155: CPU0025 | E155: PAVIMENTACAO EM BLOCOS DE CONCRETO SEXTAVADO, ESPESSURA 6 CM, JUNTA RÍGIDA, COM ARGAMASSA NO TRACO 1:4 (CIMENTO E AREIA), ASSENTADOS SOBRE COLCHAO DE PO DE PEDRA, COM APOIO DE CAMINHÃO TOCO. CPU REF.: 73764/1 | F155: M2
C156: 73454 | D156: Sinapi | E156: ALUGUEL CAMINHAO CARROC FIXA TOCO 7,5T MOTOR DIESEL 132CV(CP) C/MOTO RISTA | F156: H | G156: 0.0769
C157: 73474 | D157: Sinapi | E157: ALUGUEL CAMINHAO CARROC FIXA TOCO 7,5T MOTOR DIESEL 132CV (CI) C/MOTO RISTA | F157: H | G157: 0.0384
C158: 87316 | D158: Sinapi | E158: ARGAMASSA TRAÇO 1:4 (CIMENTO E AREIA GROSSA) PARA CHAPISCO CONVENCIONAL, PREPARO MECÂNICO COM BETONEIRA 400 L. AF_06/2014 | F158: M3 | G158: 0.021
C159: 88260 | D159: Sinapi | E159: CALCETEIRO COM ENCARGOS COMPLEMENTARES | F159: H | G159: 0.32
C160: 88316 | D160: Sinapi | E160: SERVENTE COM ENCARGOS COMPLEMENTARES | F160: H | G160: 0.7
C161: 4741 | D161: Sinapi | E161: PO DE PEDRA (POSTO PEDREIRA/FORNECEDOR, SEM FRETE) | F161: H | G161: 0.035
C162: Cotação | E162: Piso intertravado Paver 10x20 | F162: M2 | G162: 1
B164: CPU0026 | E164: FORNECIMENTO E ASSENTAMENTO DE TUBOS DE CONCRETO DIAMETRO = 300MM, SIMPLES OU ARMADO, JUNTA EM ARGAMASSA 1:3 CIMENTO:AREIA CPU REF.: 73730 | F164: M2
C165: 73535 | D165: Sinapi | E165: CHP - CAMINHAO C/GUINCHO 6T, MOTOR DIESEL 136HP, M. BENZ MOD L1214, MUNCK MOD, M 640/18, OU SIMILAR | F165: h | G165: 0.024
C166: 88309 | D166: Sinapi | E166: PEDREIRO COM ENCARGOS COMPLEMENTARES | F166: h | G166: 0.264
C167: 88316 | D167: Sinapi | E167: SERVENTE COM ENCARGOS COMPLEMENTARES | F167: h | G167: 0.552
C168: 88629 | D168: Sinapi | E168: ARGAMASSA TRAÇO 1:3 (CIMENTO E AREIA MÉDIA), PREPARO MANUAL. AF_08/2014 | F168: m3 | G168: 0.002
D169: Cotação | E169: Tubo de concreto simples Ø30cm | F169: ML | G169: 1.03

Sheet Histograma Equiptos - Geral
B2: 1 | D2: Histograma de equipamentos
C5: Descrição | D5: Unid | E5: Mês 1 | F5: Mês 2 | G5: Mês 3 | H5: Mês 4 | I5: Mês 5 | J5: Mês 6 | K5: Mês 7 | L5: Mês 8 | M5: Mês 9 | N5: Mês 10 | O5: Mês 11 | P5: Mês 12
C6: Ferramentas elétricas
C7: Furadeira | D7: UNID | E7: 2 | F7: 2 | G7: 2 | H7: 2 | I7: 2 | J7: 2 | K7: 2 | L7: 2 | M7: 2 | N7: 2 | O7: 2 | P7: 2
C8: Serra mármore | D8: UNID | E8: 2 | F8: 2 | G8: 2 | H8: 2 | I8: 2 | J8: 2 | K8: 2 | L8: 2 | M8: 2 | N8: 2 | O8: 2 | P8: 2
C9: Parafusadeira | D9: UNID | E9: 2 | F9: 2 | G9: 2 | H9: 2 | I9: 2 | J9: 2 | K9: 2 | L9: 2 | M9: 2 | N9: 2 | O9: 2 | P9: 2
C10: Equipamentos diversos
C11: Betoneira | D11: MÊS | E11: 1 | F11: 1 | G11: 1 | H11: 1 | I11: 1 | J11: 1 | K11: 1 | L11: 1 | M11: 1 | N11: 1 | O11: 1 | P11: 1
C12: Caçamba para limpeza permanente de obra | D12: UNID | E12: 4 | F12: 4 | G12: 4 | H12: 8 | I12: 8 | J12: 8 | K12: 8 | L12: 8 | M12: 8 | N12: 8 | O12: 8 | P12: 8
C13: Compactador | D13: MÊS | E13: 2 | F13: 2 | G13: 2 | O13: 2 | P13: 2
C14: Vibrador - Mangote Vibrador | D14: MÊS | E14: 3 | F14: 3 | G14: 3 | H14: 3 | I14: 3
C15: Vibrador - Motor | D15: MÊS | E15: 3 | F15: 3 | G15: 3 | H15: 3 | I15: 3
C16: Máquina Policorte | D16: MÊS | E16: 1 | F16: 1 | G16: 1 | H16: 1 | I16: 1 | J16: 1 | K16: 1 | L16: 1 | M16: 1 | N16: 1 | O16: 1 | P16: 1
C17: Martelete Elétrico 10Kg | D17: MÊS | E17: 1 | F17: 1 | G17: 1
C18: Serra de banca com motor | D18: MÊS | E18: 1 | F18: 1 | G18: 1 | H18: 1 | I18: 1 | J18: 1 | K18: 1 | L18: 1 | M18: 1 | N18: 1 | O18: 1 | P18: 1

Sheet Histograma MO - Geral
B2: 1 | D2: Histograma de Mão-de-obra
C5: Descrição | D5: Unid | E5: Mês 1 | F5: Mês 2 | G5: Mês 3 | H5: Mês 4 | I5: Mês 5 | J5: Mês 6 | K5: Mês 7 | L5: Mês 8 | M5: Mês 9 | N5: Mês 10 | O5: Mês 11 | P5: Mês 12
C6: Equipe técnica
C7: Engenheiro civil | D7: Homem x mês | E7: 1 | F7: 1 | G7: 1 | H7: 1 | I7: 1 | J7: 1 | K7: 1 | L7: 1 | M7: 1 | N7: 1 | O7: 1 | P7: 1
C8: Encarregado | D8: Homem x mês | E8: 1 | F8: 1 | G8: 1 | H8: 1 | I8: 1 | J8: 1 | K8: 1 | L8: 1 | M8: 1 | N8: 1 | O8: 1 | P8: 1
C9: Equipe produtiva
C10: Oficial | D10: Homem x mês | E10: =ROUNDUP($E$14*E15/220,0) -> 2 | F10: =ROUNDUP($E$14*F15/220,0) -> 4 | G10: 8 | H10: 14 | I10: 19 | J10: 20 | K10: 19 | L10: 16 | M10: 11 | N10: 6 | O10: 4 | P10: 2
C11: Servente | D11: Homem x mês | E11: =E10 -> 2 | F11: =F10 -> 4 | G11: 8 | H11: 14 | I11: 19 | J11: 20 | K11: 19 | L11: 16 | M11: 11 | N11: 6 | O11: 4 | P11: 2
D14: total = | E14: 26000 | F14: hh | G14: oficiais
D15: Curva S | E15: 0.01 | F15: 0.033 | G15: 0.063 | H15: 0.113 | I15: 0.154 | J15: 0.169 | K15: 0.16 | L15: 0.127 | M15: 0.086 | N15: 0.048 | O15: 0.026 | P15: 0.011

Sheet Cronograma FF Tipo 3
B2: 1 | D2: Cronograma físico-financeiro - CER II - Tipo III
C5: Item | D5: Descrição | E5: Valor total com BDI | F5: Mês 1 | G5: Mês 2 | H5: Mês 3 | I5: Mês 4 | J5: Mês 5 | K5: Mês 6 | L5: Mês 7 | M5: Mês 8 | N5: Mês 9 | O5: Mês 10 | P5: Mês 11 | Q5: Mês 12
C6: 02 | D6: SERVIÇOS PRELIMINARES | E6: =VLOOKUP(C6,'Planilha Orcamentaria - Tipo 3'!J:P,COLUMNS(J:P),FALSE) -> 0 | F6: 1
C7: 03 | D7: EQUIPE TÉCNICA | E7: =VLOOKUP(C7,'Planilha Orcamentaria - Tipo 3'!J:P,COLUMNS(J:P),FALSE) -> 0 | F7: =1/12 -> 0.08333333333 | G7: =1/12 -> 0.08333333333 | H7: 0.08333333333 | I7: 0.08333333333 | J7: 0.08333333333 | K7: 0.08333333333 | L7: 0.08333333333 | M7: 0.08333333333 | N7: 0.08333333333 | O7: 0.08333333333 | P7: 0.08333333333 | Q7: 0.08333333333
C8: 04 | D8: INFRA ESTRUTURA | E8: =VLOOKUP(C8,'Planilha Orcamentaria - Tipo 3'!J:P,COLUMNS(J:P),FALSE) -> 0 | F8: 0.2 | G8: 0.4 | H8: 0.4
C9: 05 | D9: SUPER ESTRUTURA | E9: =VLOOKUP(C9,'Planilha Orcamentaria - Tipo 3'!J:P,COLUMNS(J:P),FALSE) -> 0 | H9: 0.1 | I9: 0.5 | J9: 0.4
C10: 06 | D10: ALVENARIA | E10: =VLOOKUP(C10,'Planilha Orcamentaria - Tipo 3'!J:P,COLUMNS(J:P),FALSE) -> 0 | I10: 0.3 | J10: 0.4 | K10: 0.3
C11: 07 | D11: COBERTURA | E11: =VLOOKUP(C11,'Planilha Orcamentaria - Tipo 3'!J:P,COLUMNS(J:P),FALSE) -> 0 | J11: 0.2 | K11: 0.8
C12: 08 | D12: IMPERMEABILIZAÇÕES | E12: =VLOOKUP(C12,'Planilha Orcamentaria - Tipo 3'!J:P,COLUMNS(J:P),FALSE) -> 0 | K12: 0.2 | L12: 0.8
C13: 09 | D13: INSTALAÇÕES ELÉTRICAS PREDIAIS | E13: =VLOOKUP(C13,'Planilha Orcamentaria - Tipo 3'!J:P,COLUMNS(J:P),FALSE) -> 0 | G13: 0.012 | H13: 0.04 | I13: 0.081 | J13: 0.138 | K13: 0.178 | L13: 0.18 | M13: 0.153 | N13: 0.112 | O13: 0.062 | P13: 0.032 | Q13: 0.012
C14: 10 | D14: SONORIZAÇÃO | E14: =VLOOKUP(C14,'Planilha Orcamentaria - Tipo 3'!J:P,COLUMNS(J:P),FALSE) -> 0 | O14: 0.4 | P14: 0.5 | Q14: 0.1
C15: 11 | D15: REDE DE DADOS | E15: =VLOOKUP(C15,'Planilha Orcamentaria - Tipo 3'!J:P,COLUMNS(J:P),FALSE) -> 0 | O15: 0.4 | P15: 0.5 | Q15: 0.1
C16: 12 | D16: SPDA | E16: =VLOOKUP(C16,'Planilha Orcamentaria - Tipo 3'!J:P,COLUMNS(J:P),FALSE) -> 0 | O16: 0.4 | P16: 0.5 | Q16: 0.1
C17: 13 | D17: DETECÇÃO DE FUMAÇA | E17: =VLOOKUP(C17,'Planilha Orcamentaria - Tipo 3'!J:P,COLUMNS(J:P),FALSE) -> 0 | G17: 0.012 | H17: 0.04 | I17: 0.081 | J17: 0.138 | K17: 0.178 | L17: 0.18 | M17: 0.153 | N17: 0.112 | O17: 0.062 | P17: 0.032 | Q17: 0.012
C18: 14 | D18: CFTV | E18: =VLOOKUP(C18,'Planilha Orcamentaria - Tipo 3'!J:P,COLUMNS(J:P),FALSE) -> 0 | G18: 0.012 | H18: 0.04 | I18: 0.081 | J18: 0.138 | K18: 0.178 | L18: 0.18 | M18: 0.153 | N18: 0.112 | O18: 0.062 | P18: 0.032 | Q18: 0.012
C19: 15 | D19: SUBESTAÇÃO AÉREA | E19: =VLOOKUP(C19,'Planilha Orcamentaria - Tipo 3'!J:P,COLUMNS(J:P),FALSE) -> 0 | G19: 0.2 | H19: 0.3 | I19: 0.4 | J19: 0.1
C20: 16 | D20: COMBATE A INCÊNDIO | E20: =VLOOKUP(C20,'Planilha Orcamentaria - Tipo 3'!J:P,COLUMNS(J:P),FALSE) -> 0 | G20: 0.012 | H20: 0.04 | I20: 0.081 | J20: 0.138 | K20: 0.178 | L20: 0.18 | M20: 0.153 | N20: 0.112 | O20: 0.062 | P20: 0.032 | Q20: 0.012
C21: 17 | D21: ÁGUA FRIA | E21: =VLOOKUP(C21,'Planilha Orcamentaria - Tipo 3'!J:P,COLUMNS(J:P),FALSE) -> 0 | G21: 0.012 | H21: 0.04 | I21: 0.081 | J21: 0.138 | K21: 0.178 | L21: 0.18 | M21: 0.153 | N21: 0.112 | O21: 0.062 | P21: 0.032 | Q21: 0.012
C22: 18 | D22: ESGOTO PREDIAL | E22: =VLOOKUP(C22,'Planilha Orcamentaria - Tipo 3'!J:P,COLUMNS(J:P),FALSE) -> 0 | G22: 0.012 | H22: 0.04 | I22: 0.081 | J22: 0.138 | K22: 0.178 | L22: 0.18 | M22: 0.153 | N22: 0.112 | O22: 0.062 | P22: 0.032 | Q22: 0.012
C23: 19 | D23: DRENAGEM PLUVIAL | E23: =VLOOKUP(C23,'Planilha Orcamentaria - Tipo 3'!J:P,COLUMNS(J:P),FALSE) -> 0 | G23: 0.012 | H23: 0.04 | I23: 0.081 | J23: 0.138 | K23: 0.178 | L23: 0.18 | M23: 0.153 | N23: 0.112 | O23: 0.062 | P23: 0.032 | Q23: 0.012
C24: 20 | D24: INSTALAÇÕES GLP | E24: =VLOOKUP(C24,'Planilha Orcamentaria - Tipo 3'!J:P,COLUMNS(J:P),FALSE) -> 0 | N24: 0.106 | O24: 0.436 | P24: 0.373 | Q24: 0.085
C25: 21 | D25: ESQUADRIAS | E25: =VLOOKUP(C25,'Planilha Orcamentaria - Tipo 3'!J:P,COLUMNS(J:P),FALSE) -> 0 | L25: 0.3 | M25: 0.3 | N25: 0.4
C26: 22 | D26: VIDROS | E26: =VLOOKUP(C26,'Planilha Orcamentaria - Tipo 3'!J:P,COLUMNS(J:P),FALSE) -> 0 | O26: 1
C27: 23 | D27: MARCENARIA | E27: =VLOOKUP(C27,'Planilha Orcamentaria - Tipo 3'!J:P,COLUMNS(J:P),FALSE) -> 0 | P27: 0.8 | Q27: 0.2
C28: 24 | D28: PISOS E PAVIMENTAÇÃO INTERNA | E28: =VLOOKUP(C28,'Planilha Orcamentaria - Tipo 3'!J:P,COLUMNS(J:P),FALSE) -> 0 | K28: 0.106 | L28: 0.436 | M28: 0.373 | N28: 0.085
C29: 25 | D29: PISOS E PAVIMENTAÇÃO EXTERNA | E29: =VLOOKUP(C29,'Planilha Orcamentaria - Tipo 3'!J:P,COLUMNS(J:P),FALSE) -> 0 | M29: 0.106 | N29: 0.436 | O29: 0.373 | P29: 0.085
C30: 26 | D30: REVESTIMENTO DE PAREDES INTERNAS | E30: =VLOOKUP(C30,'Planilha Orcamentaria - Tipo 3'!J:P,COLUMNS(J:P),FALSE) -> 0 | K30: 0.106 | L30: 0.436 | M30: 0.373 | N30: 0.085
C31: 27 | D31: REVESTIMENTO DE PAREDES EXTERNAS | E31: =VLOOKUP(C31,'Planilha Orcamentaria - Tipo 3'!J:P,COLUMNS(J:P),FALSE) -> 0 | M31: 0.106 | N31: 0.436 | O31: 0.373 | P31: 0.085
C32: 28 | D32: FORROS | E32: =VLOOKUP(C32,'Planilha Orcamentaria - Tipo 3'!J:P,COLUMNS(J:P),FALSE) -> 0 | M32: 0.106 | N32: 0.436 | O32: 0.373 | P32: 0.085
C33: 29 | D33: LOUÇAS E METAIS | E33: =VLOOKUP(C33,'Planilha Orcamentaria - Tipo 3'!J:P,COLUMNS(J:P),FALSE) -> 0 | O33: 0.6 | P33: 0.4
C34: 30 | D34: BANCADAS E PEDRAS | E34: =VLOOKUP(C34,'Planilha Orcamentaria - Tipo 3'!J:P,COLUMNS(J:P),FALSE) -> 0 | N34: 0.8 | O34: 0.2
C35: 31 | D35: PINTURA | E35: =VLOOKUP(C35,'Planilha Orcamentaria - Tipo 3'!J:P,COLUMNS(J:P),FALSE) -> 0 | N35: 0.1 | O35: 0.5 | P35: 0.2 | Q35: 0.2
C36: 32 | D36: PAISAGISMO | E36: =VLOOKUP(C36,'Planilha Orcamentaria - Tipo 3'!J:P,COLUMNS(J:P),FALSE) -> 0 | Q36: 1
C37: 33 | D37: COMUNICAÇÃO VISUAL | E37: =VLOOKUP(C37,'Planilha Orcamentaria - Tipo 3'!J:P,COLUMNS(J:P),FALSE) -> 0 | Q37: 1
C38: 34 | D38: DESPESAS FINAIS | E38: =VLOOKUP(C38,'Planilha Orcamentaria - Tipo 3'!J:P,COLUMNS(J:P),FALSE) -> 0 | Q38: 1
D39: TOTAL | E39: =SUM(E6:E38) -> 0
D40: AVANÇO % MENSAL | F40: =F42/$E$39 ->  | G40: =G42/$E$39 -> 
D41: AVANÇO % ACUMULADO | F41: =F40 ->  | G41: =G40+F41 ->  | H41: =H40+G41 -> 
D42: AVANÇO FINANCEIRO MENSAL | F42: =SUMPRODUCT($E$6:$E$38,F6:F38) -> 0 | G42: =SUMPRODUCT($E$6:$E$38,G6:G38) -> 0 | H42: =SUMPRODUCT($E$6:$E$38,H6:H38) -> 0 | I42: 0 | J42: 0 | K42: 0 | L42: 0 | M42: 0 | N42: 0 | O42: 0 | P42: 0 | Q42: 0
D43: AVANÇO FINANCEIRO ACUMULADO | F43: =F42 -> 0 | G43: =G42+F43 -> 0 | H43: =H42+G43 -> 0 | I43: 0 | J43: 0 | K43: 0 | L43: 0 | M43: 0 | N43: 0 | O43: 0 | P43: 0 | Q43: 0
